Cogmind - Beta 16 @@@ ROGUE MODE // 2026.01.02 @ 21:47:13 Player: AngelSpirit Result: Defending 0bPrime! Performance ------------- Evolutions (8) 4000 Regions Visited (22) 4400 Robots Destroyed (602) 3010 Value Destroyed (40057) 40057 Prototype IDs (176) 3520 Alien Tech Used (7) 1400 Bonus (51280) 51280 TOTAL SCORE: 107667 Bonus ------- High Alert Combat Kills 27596 Follower Combat Kills 3285 Delivered SUBCON Basin 2000 Registered with UFD 300 Met Optimus in HQ 500 Met Zhirov 300 Built Enhanced Grunts 300 Met R17 at Cetus 500 Hacked Protovariant 1000 Met Optimus at Protoforge 1000 Executed Drillbomb Mission 10000 Optimus Survived to 0b1 3000 Win 3000 Friendly Fire -1501 Cogmind --------- Core Integrity 363/1450 Matter 300/300 Energy 1520/1520 System Corruption 10% Temperature Cool (0) Movement Walking (100) Location 0bPrime Parts ------- > --- POWER (2) -------- Hybrid Graviton Reactor Concept Zero-point Core > --- PROPULSION (6) --- Enhanced Biometal Leg Enhanced Biometal Leg Enhanced Biometal Leg Enhanced Biometal Leg Enhanced Biometal Leg Enhanced Biometal Leg > --- UTILITY (11) ----- Concept Phasing Heat Sink Concept Antigrav Storage Unit Experimental Optical Array Concept Networked Targeting System Concept Weapon Articulator Experimental Core Analyzer Improved Armor Integrity Analyzer Experimental Kinecellerator Experimental Weapon Cycler Experimental Reaction Control System Concept RG22 Armor > --- WEAPON (4) ------- Omega Cannon Concept Helical Railcannon Concept Helical Railcannon > --- INVENTORY (25) --- Concept Zero-point Core Gravjet Array Gravjet Array Gravjet Array Concept Combat Aerolev Unit Concept Combat Aerolev Unit Concept Gyrokinetic System Concept Gyrokinetic System Experimental Kinecellerator Concept RG22 Armor Transdimensional Reconstructor Helical Railgun Concept XC Strikerail Concept XC Strikerail Overtuned Linear Accelerator Smartbomb Launcher Peak State ------------ > --- POWER ------------ Hybrid Graviton Reactor Concept Zero-point Core > --- PROPULSION ------- Experimental Antigrav System Experimental Antigrav System Concept Combat Aerolev Unit Concept Combat Aerolev Unit Concept Gyrokinetic System Concept Gyrokinetic System > --- UTILITY ---------- Concept Phasing Heat Sink Concept Antigrav Storage Unit Experimental Optical Array Concept Networked Targeting System Experimental Core Analyzer Experimental Weapon Cycler Experimental Reaction Control System Concept Phase Shift Module Concept Core Shell Concept RG22 Armor Experimental Shield Generator > --- WEAPON ----------- Concept XC Strikerail Concept XC Strikerail Concept XC Strikerail Concept XC Strikerail > --- INVENTORY -------- Concept Zero-point Core Gravjet Array Gravjet Array Gravjet Array Gravjet Array Concept Gyrokinetic System Concept Weapon Articulator Experimental Kinecellerator Experimental Kinecellerator Concept RG22 Armor Transdimensional Reconstructor Concept XC Strikerail Concept XC Strikerail Concept XC Strikerail Concept XC Strikerail Omega Cannon Concept Helical Railcannon Concept Helical Railcannon Smartbomb Launcher [Rating: 289] Favorites ----------- Power Micro Fission Core Engine Ion Engine Power Core Micro Fission Core Reactor Micro Antimatter Reactor Propulsion Wheel Treads Medium Treads Leg Enhanced Flexi-carbon Leg Wheel Wheel Hover Unit Experimental Antigrav System Flight Unit Flightbrick Utility High-capacity Storage Unit Device Advanced Transmission Jammer Storage High-capacity Storage Unit Processor Tech Extrapolator Hackware Advanced System Shield Protection Medium Regenerative Plating Artifact Phase Redirector Weapon Concept XC Strikerail Energy Gun Enhanced Quantum Rifle Energy Cannon Subdweller Beam Cannon Ballistic Gun Concept XC Strikerail Ballistic Cannon Battle Cannon Launcher Grenade Launcher Special Weapon Advanced Remote Datajack Impact Weapon Shock Maul Slashing Weapon Ionic Axe Piercing Weapon Plasma Lance Special Melee Weapon Datajack Build | -11 -10 -10 -7 -7 -5 -5 -5 -5 -5 -5 -4 -4 -4 -4 -4 -4 -3 -3 -3 -2 -2 -2 ------- Run | Yrd Mat Sub Rec Scr Fac Was Fac Ext Cet Arc Fac Was Fac Upp Upp Zhi Pro Res Tes Res Qua Frg Slots Evolved 15 | . . . . . 10 . . . . . 2 . . . . . . 2 . 1 . . Power . | . . . . . . . . . . . . . . . . . . . . . . . Propulsion 4 | . . . . . 2 . . . . . 1 . . . . . . 1 . . . . Utility 9 | . . . . . 7 . . . . . 1 . . . . . . 1 . . . . Weapon 2 | . . . . . 1 . . . . . . . . . . . . . . 1 . . Parts Attached 401 | 6 14 17 5 5 46 2 27 16 22 9 31 . 15 1 1 3 2 19 19 8 16 117 Power 49 | 1 3 3 . 1 4 1 1 2 3 . 3 . . . . . . 2 3 2 5 15 Engine 15 | 1 3 3 . 1 . . 1 1 1 . . . . . . . . 1 . . 1 2 Core 11 | . . . . . 4 1 . 1 1 . 2 . . . . . . . . . . 2 Reactor 23 | . . . . . . . . . 1 . 1 . . . . . . 1 3 2 4 11 Propulsion 84 | 2 3 6 2 . 12 1 9 3 4 2 5 . 2 . . 1 . 2 1 2 7 20 Treads 1 | . . . . . . . 1 . . . . . . . . . . . . . . . Leg 20 | . . . . . 3 . 4 3 4 . . . . . . . . . . . . 6 Wheel 28 | 2 3 6 2 . 9 . 4 . . 2 . . . . . . . . . . . . Hover 21 | . . . . . . . . . . . 1 . . . . . . . . . 6 14 Flight 14 | . . . . . . 1 . . . . 4 . 2 . . 1 . 2 1 2 1 . Utility 173 | 1 4 3 . 1 19 . 11 10 10 3 19 . 9 . 1 2 2 11 8 2 2 55 Device 87 | . 2 3 . . 8 . 4 3 5 2 12 . 4 . 1 . . 6 6 . 1 30 Storage 10 | 1 2 . . . . . . . 1 . 1 . . . . 1 . 2 1 . . 1 Processor 32 | . . . . 1 3 . 3 1 . . 4 . 3 . . . . 1 1 2 . 13 Hackware 12 | . . . . . 3 . 2 . . 1 1 . 1 . . . 2 2 . . . . Protection 31 | . . . . . 5 . 2 6 4 . 1 . 1 . . 1 . . . . . 11 Artifact 1 | . . . . . . . . . . . . . . . . . . . . . 1 . Weapon 95 | 2 4 5 3 3 11 . 6 1 5 4 4 . 4 1 . . . 4 7 2 2 27 Energy Gun 15 | 2 . 1 . . 2 . . . . 1 1 . . . . . . . 2 . . 6 Energy Cannon 12 | . 1 1 1 . 2 . . . 3 . 1 . 1 . . . . . 1 . . 1 Ballistic Gun 31 | . 1 2 . . 5 . 1 . 1 3 2 . . . . . . . 1 . 1 14 Ballistic Cannon 9 | . 1 1 1 . . . 1 . 1 . . . . . . . . . 1 . . 3 Launcher 6 | . 1 . . . . . 2 . . . . . . . . . . . . 1 . 2 Special Weapon 3 | . . . . . . . . 1 . . . . . . . . . . 1 . . 1 Impact Weapon 4 | . . . . . 1 . 1 . . . . . . . . . . 2 . . . . Slashing Weapon 8 | . . . 1 2 . . 1 . . . . . 1 . . . . 1 1 . 1 . Piercing Weapon 6 | . . . . . 1 . . . . . . . 2 1 . . . 1 . 1 . . Special Melee Weapon 1 | . . . . 1 . . . . . . . . . . . . . . . . . . Unidentified Prototypes 88 | . . 1 . . 2 . 3 . 6 . 6 . 6 . 1 4 . 9 15 1 7 27 Parts Lost 85 | . 1 2 . . 25 4 7 4 . . 7 . 1 . . . . 2 1 1 1 29 Power 13 | . . . . . 3 1 . . . . . . . . . . . 1 1 . 1 6 Propulsion 23 | . 1 2 . . 10 1 3 1 . . 1 . . . . . . . . . . 4 Utility 27 | . . . . . 7 1 3 1 . . 3 . 1 . . . . 1 . 1 . 9 Weapon 22 | . . . . . 5 1 1 2 . . 3 . . . . . . . . . . 10 Highest Loss Streak 8 | . 1 1 . . 8 4 3 4 . . 4 . 1 . . . . 1 1 1 1 4 To Critical Strikes 1 | . . . . . . . . . . . . . . . . . . . . . . 1 Average Backups 10 | . 4 6 5 14 11 12 11 11 12 13 9 8 7 7 7 7 7 7 7 7 7 16 Power . | . 1 1 . . . 1 . 1 1 2 1 . . . . . . . . . . . Propulsion 1 | . . 2 1 1 1 1 1 1 1 2 . . . . . . . . . . . 3 Utility 4 | . . 1 4 9 6 4 4 5 4 5 4 5 3 4 4 3 4 4 3 3 1 3 Weapon 3 | . 1 . . 2 . 4 3 2 3 3 3 3 4 3 3 2 2 1 2 2 3 6 Tool/Special . | . . . . . . . . . . . . . . . . . . . . . . . Unused Backups 35 | . 2 5 . 2 2 . 2 3 3 . 1 . 2 . . . . 1 3 . 1 8 Power 4 | . 2 1 . . . . . . . . . . . . . . . . . . . 1 Propulsion 5 | . . 1 . . . . . . 1 . 1 . . . . . . . . . . 2 Utility 13 | . . 1 . 2 2 . 1 1 1 . . . 1 . . . . . 2 . . 2 Weapon 9 | . . 1 . . . . . 2 1 . . . 1 . . . . 1 . . 1 2 Tool/Special 4 | . . 1 . . . . 1 . . . . . . . . . . . 1 . . 1 Average Slot Usage (%) 89 | . 95 99 92 85 82 80 85 98 96 93 66 68 75 79 79 79 79 82 82 76 84 96 Engine 5 | . 13 14 14 14 1 . 1 2 4 . . 1 4 4 4 4 4 3 2 . 3 . Core 2 | . . . . . 3 3 3 2 . 5 5 6 4 4 4 4 4 3 2 . . 2 Reactor 1 | . . . . . . . . . . . . . . . . . . 2 4 7 3 4 Leg 2 | . . . . . 4 . 6 22 23 16 . . . . . . . . . . . . Wheel 10 | . 27 27 28 28 14 8 6 . . 2 3 . . . . . . . . . . . Hover 5 | . . . . . . . . . . . . . . . . . . . . . 13 23 Flight 2 | . . . . . . 4 1 . . . 4 4 7 8 8 8 8 10 11 11 5 . Device 16 | . 9 13 7 . 11 14 11 13 7 11 16 24 22 25 27 29 27 25 26 22 18 22 Storage 7 | . 14 14 14 14 5 5 5 5 6 9 4 4 4 4 4 4 4 3 3 3 3 4 Processor 8 | . . . . 12 13 17 15 13 10 5 10 16 15 12 9 8 8 7 7 9 12 12 Hackware 3 | . . . . . 2 11 9 5 5 5 4 8 8 8 8 8 9 11 11 11 9 2 Protection 3 | . . . . . 4 . 2 11 16 15 6 . 1 . . . . . . 1 3 4 Energy Gun 1 | . 4 4 . . . 5 2 . . . . . . . . . . . . . . 1 Energy Cannon 2 | . 9 9 12 . 2 . . . 3 13 . . . . . . . . . . . . Ballistic Gun 4 | . . 2 11 . 7 6 3 . 1 2 5 . . . . . . . . . 1 12 Ballistic Cannon 2 | . 10 11 1 . . . 2 . 2 . . . . . . . . . . . . . Slashing Weapon 2 | . . . 2 6 2 . . 4 4 . 2 4 6 4 4 4 4 2 1 3 5 . Piercing Weapon 1 | . . . . . 1 . . . . . . . 2 7 8 8 8 7 4 . . . Peak Build Rating 289 | 6 8 33 33 30 82 89 96 101 126 126 133 126 155 150 152 153 154 179 193 195 197 289 Average Rating 121 | 3 7 24 21 23 65 77 81 96 104 119 112 124 140 149 151 152 152 172 181 186 185 257 On Entrance 105 | . 6 8 33 19 30 77 67 95 97 126 113 126 123 148 150 152 152 152 179 185 186 196 Avg Prop Armor Cover (%) 6 | . . . . . 7 7 6 . . . . . . . . . . . . . . . Naked Turns . | . . . . . . . . . . . . . . . . . . . . . . . Heaviest Build 120 | 13 55 58 58 55 90 64 88 99 112 112 104 33 43 43 43 43 43 51 51 56 69 120 Greatest Support 180 | 20 20 30 32 32 48 20 104 109 112 112 41 33 45 45 45 45 45 56 56 57 86 180 Greatest Overweight (x) 6 | . 2 5 2 1 5 4 6 1 . 5 2 . . . 1 1 . . . . . 1 Average Overweight (x) . | . 1 2 1 1 1 3 2 . . 1 . . . . . . . . . . . . Largest Inventory Capacity 25 | 8 20 20 20 20 20 20 20 20 20 20 20 10 10 10 10 10 10 10 10 10 10 25 Average Capacity 17 | 7 19 20 20 20 20 20 20 20 20 20 13 10 10 10 10 10 10 10 10 10 10 21 Most Carried 25 | . 10 20 20 20 20 20 20 20 20 20 20 10 10 10 10 10 10 10 10 10 10 25 Average Carried 16 | . 4 17 13 19 19 19 19 19 19 19 13 10 9 9 10 9 9 9 9 9 9 20 Final Capacity 25 | 8 20 20 20 20 20 20 20 20 20 20 10 10 10 10 10 10 10 10 10 10 10 25 Final Carried 20 | . 10 20 17 19 20 19 20 20 20 20 10 10 10 10 10 10 9 10 10 10 10 20 Scrap Suit Usage (%) 1 | . . . . . . . . . . 10 12 . . . . . . . . . . . Parts Cannibalized 5 | . . . . . . . . . . . 5 . . . . . . . . . . . Class Distribution -------------------- 19% | Hacker-Ninja 19% | Scavenger-Gunner 13% | Commander-Mutant 12% | Scavenger-Mutant 12% | Mutant 4% | Scavenger-Gladiator 3% | Scavenger-Tank Dominant Class ---------------- Mutant | -10/Materials Mutant | -10/Subcaves Commander-Mutant | -7/Recycling Commander-Mutant | -7/Scraptown Scavenger-Gunner | -5/Factory Scavenger-Skirmisher | -5/Waste Hacker-Mutant | -5/Factory Scavenger-Gladiator | -5/Extension Scavenger-Mutant | -5/Cetus Scavenger-Scrapper | -5/Archives Scavenger-Scrapper | -4/Factory Hacker-Ninja | -4/Waste Hacker-Ninja | -4/Factory Hacker-Ninja | -4/Upper Caves Hacker-Ninja | -4/Upper Caves Hacker-Ninja | -4/Zhirov Hacker-Ninja | -3/Proximity Caves Hacker-Ninja | -3/Research Hacker-Ninja | -3/Testing Hacker-Scout | -2/Research Hacker-Ninja | -2/Quarantine Scavenger-Gunner | -2/Protoforge Resources | -11 -10 -10 -7 -7 -5 -5 -5 -5 -5 -5 -4 -4 -4 -4 -4 -4 -3 -3 -3 -2 -2 -2 ----------- Run | Yrd Mat Sub Rec Scr Fac Was Fac Ext Cet Arc Fac Was Fac Upp Upp Zhi Pro Res Tes Res Qua Frg Matter Collected 19517 | 171 552 414 101 20 1002 . 668 769 1538 134 1005 95 140 55 10 40 50 260 400 171 148 11774 Remotely 277 | . . . . . . . . . . . . . . . . . . . . . . 277 Salvage Created 39318 | . 659 227 476 . 1836 . 1230 908 292 273 2125 . 536 62 . 297 38 814 596 653 222 28074 Parts 1629 | . 54 14 15 . 90 . 71 23 7 14 80 . 16 3 . 3 2 21 18 32 12 1154 Haulers Intercepted 17 | . 2 . . . . . 2 1 . . 3 . 3 . . . . 5 . 1 . . Recyclers Shooed 7 | . . . 1 . 2 . 2 1 . . 1 . . . . . . . . . . . Parts Field Recycled . | . . . . . . . . . . . . . . . . . . . . . . . Retrieved Matter . | . . . . . . . . . . . . . . . . . . . . . . . Parts Self-Destructed 46 | . . 21 . . . . . . . . . . . 4 5 3 13 . . . . . Prevented 14 | . . . . . . . . . . . . . . 5 7 . 2 . . . . . Parts Restored 8 | . . . . . . . . . . . . . . . . . . . . . . 8 Faulty 8 | . . . . . . . . . . . . . . . . . . . . . . 8 Kills | -11 -10 -10 -7 -7 -5 -5 -5 -5 -5 -5 -4 -4 -4 -4 -4 -4 -3 -3 -3 -2 -2 -2 ------- Run | Yrd Mat Sub Rec Scr Fac Was Fac Ext Cet Arc Fac Was Fac Upp Upp Zhi Pro Res Tes Res Qua Frg Combat Hostiles Destroyed 512 | . 15 6 1 . 32 . 19 9 4 2 22 . 3 1 . . 1 1 8 7 1 380 Melee 31 | . . . . . 9 . . 2 . . 5 . 3 1 . . 1 1 5 3 1 . Guns 397 | . . . . . 12 . 6 . . . 15 . . . . . . . . . . 364 Cannons 47 | . 7 5 . . 8 . 6 . 4 2 . . . . . . . . . . . 15 AOE 22 | . 8 1 . . . . 5 1 . . 2 . . . . . . . . 4 . 1 Classes Destroyed 27 | . 7 1 2 . 4 . 1 1 . . . . . . . . . . 1 . . 10 Worker 11 | . 5 . . . 2 . 3 . . . . . . . . . . . 1 . . . Builder 10 | . 3 . . . 1 . 5 . . . 1 . . . . . . . . . . . Tunneler 2 | . . . . . 2 . . . . . . . . . . . . . . . . . Hauler 18 | . 2 . . . . . 2 1 . . 3 . 3 . . . . 5 . 1 . 1 Recycler 15 | . . . 5 . 2 . . 1 . . 3 . . . . . . 1 1 1 1 . Mechanic 6 | . . . . . . . . . . . . . . . . . . . . . . 6 Operator 12 | . 1 . . . 1 . 1 . . 4 1 . . . . . . 1 . . 1 2 Drone 10 | . . . . . . . . . . . . . . . . . . . 1 . . 9 Watcher 11 | . 2 . . . . . 2 . 1 . . . . . . . . 1 . 3 . 2 Swarmer 75 | . 5 2 . . 15 . 4 . . . 3 . . . . . 1 . 2 4 . 39 Saboteur 8 | . . . . . . . . . . . . . . . . . . . . . . 8 Grunt 102 | . 10 1 . . 5 . 7 5 . . 8 . 1 1 . . . 1 3 . 1 59 Brawler 21 | . . . . . 1 . . . . . . . . . . . . . . . . 20 Duelist 18 | . . . . . . . 1 . . . . . . . . . . . . . . 17 Protector 19 | . . . . . . . . . . . . . . . . . . . . . . 19 Sentry 22 | . . . 1 . 3 . . 3 . 2 3 . 1 . . . . . . 1 . 8 Specialist 3 | . . . . . . . . . . . . . . . . . . . . . . 3 Hunter 42 | . . . . . 4 . 3 . . . 4 . 1 . . . . . 2 . . 28 Programmer 61 | . . . . . 4 . 4 . . . 4 . . . . . . . . 2 . 47 Behemoth 1 | . . . . . . . . 1 . . . . . . . . . . . . . . Cetus Guard 4 | . . . . . . . . . 4 . . . . . . . . . . . . . Enhanced Grunt 1 | . . . . . . . . . 1 . . . . . . . . . . . . . Hotshot 5 | . . . . . . . . . . . . . . . . . . . . . . 5 Decapitator 7 | . . . . . . . . . . . . . . . . . . . . . . 7 Immortal 4 | . . . . . . . . . . . . . . . . . . . . . . 4 Striker 43 | . . . . . . . . . . . . . . . . . . . . . . 43 Executioner 60 | . . . . . . . . . . . . . . . . . . . . . . 60 V-Series 2 | . . . . . . . . . . . . . . . . . . . . . . 2 Subdweller 6 | . . 5 1 . . . . . . . . . . . . . . . . . . . Elite 2 | . . . . . . . . . . . . . . . . . . . . . . 2 Scrapoid 3 | . . . . . . . . . . . . . . . . . . . . . . 3 Best Kill Streak 24 | . 5 2 3 . 11 . 7 3 5 4 6 . 1 1 . . 1 2 2 4 2 24 Combat Bots Only 24 | . 3 2 1 . 8 . 6 3 4 2 6 . 1 1 . . 1 1 2 4 1 24 Max Kills in Single Turn 4 | . 3 1 1 . 1 . 2 2 1 1 2 . 1 1 . . 1 1 1 4 1 4 Gunslinging 2 | . . . . . . . . . . . 1 . . . . . . . . . . 2 Exploded 4 | . 2 1 . . . . 2 1 . . 1 . . . . . . . . 4 . 1 Melee 2 | . . . . . 1 . . 2 . . 1 . 1 1 . . 1 1 1 1 1 . Uniques/NPCs Destroyed . | . . . . . . . . . . . . . . . . . . . . . . . Combat | -11 -10 -10 -7 -7 -5 -5 -5 -5 -5 -5 -4 -4 -4 -4 -4 -4 -3 -3 -3 -2 -2 -2 -------- Run | Yrd Mat Sub Rec Scr Fac Was Fac Ext Cet Arc Fac Was Fac Upp Upp Zhi Pro Res Tes Res Qua Frg Hostile Shots Fired 1804 | . 49 33 . . 358 3 151 79 6 15 298 . 20 16 3 . 5 11 35 45 49 628 Missed 740 | . 16 10 . . 92 . 50 29 1 4 94 . 13 14 2 . 5 7 26 29 25 323 Hits 1064 | . 33 23 . . 266 3 101 50 5 11 204 . 7 2 1 . . 4 9 16 24 305 Melee 22 | . . . . . 5 3 1 . . . . . . . . . . . . . . 13 Projectile 1042 | . 33 23 . . 261 . 100 50 5 11 204 . 7 2 1 . . 4 9 16 24 292 AOE 2 | . . 1 . . . . . . . . . . . . . . . . . . . 1 Critical Strikes 45 | . . . . . 8 . 3 4 1 1 9 . . . . . . . 1 . 1 17 Actively Blocked 1 | . . . . . . . . . . . . . . . . . . . . . . 1 Part Disruptions 2 | . . . . . 1 . . . . . . . . . . . . . . . . 1 Damage Taken 21719 | . 377 443 . . 3726 142 1591 1134 176 313 3682 . 178 43 16 . . 88 171 437 452 8750 Core 2289 | . 81 43 . . 624 58 189 76 . 30 240 . . . . . . 24 17 . . 907 Absorbed by Shields 1020 | . . . . . 227 . . 123 14 . . . . . . . . . . . . 656 Redirected to Shielding 412 | . . . . . 56 . . . . . . . . . . . . . . . . 356 Ignored by Resistances 659 | . . . . . 466 . 160 11 . . 22 . . . . . . . . . . . Regen/Repaired (Parts) 1849 | . . . . . 125 . . . 68 44 287 . . . . . . . . 153 279 893 Core Remaining (%) 58 | 100 . . . 50 . . . . . 2 . . . . . . 79 . 96 . . 25 Volleys Fired 926 | . 44 40 10 . 92 . 61 6 29 14 58 . . . . . . . 2 4 1 565 Largest 4 | . 2 2 2 . 3 . 2 2 1 3 3 . . . . . . . 1 1 2 4 Hottest 570 | . 90 113 110 . 160 . 114 73 48 270 105 . . . . . . . 7 46 100 570 Shots Fired 2722 | . 76 80 21 . 201 . 98 8 29 41 153 . . . . . . . 2 4 2 2007 Gun 2318 | . . 14 10 . 143 . 41 2 . . 149 . . . . . . . . . 2 1957 Cannon 363 | . 65 62 11 . 58 . 50 2 29 41 . . . . . . . . . . . 45 Launcher 33 | . 11 4 . . . . 7 4 . . 4 . . . . . . . . 2 . 1 Special 8 | . . . . . . . . . . . . . . . . . . . 2 2 . 4 Kinetic 2334 | . 32 36 10 . 137 . 89 4 29 . 149 . . . . . . . . . 2 1846 Thermal 347 | . 33 40 11 . 64 . 2 . . 41 . . . . . . . . . . . 156 Explosive 18 | . 11 4 . . . . . . . . . . . . . . . . . 2 . 1 Electromagnetic 15 | . . . . . . . 7 4 . . 4 . . . . . . . . . . . Robot Hit Streak 70 | . 8 9 10 . 15 . 8 2 5 8 10 . . . . . . . 4 6 . 70 Robot Miss Streak 8 | . 3 4 2 . 4 . 4 3 8 3 7 . . . . . . . . . . 5 Penetration Max 2 | . . . . . 2 . 1 . 1 . 2 . . . . . . . . . . 2 Secondary Targets 127 | . . . . . 1 . . . . . 4 . . . . . . . . . . 122 Max Gunslinging Chain 3 | . . . . . 1 . . . . . 1 . . . . . . . . . . 3 Shots Hit Robots 2186 | . 42 23 13 . 151 . 73 47 12 24 114 . 21 1 . 8 1 24 18 17 3 1594 Core Hits 1035 | . 33 12 5 . 66 . 49 10 8 13 55 . 7 1 . 3 . 8 7 10 1 747 Critical Kills 135 | . . . 1 . 3 . 3 1 4 . 5 . . . . . . . 1 . . 117 Critical Parts Destroyed 160 | . . . . . 3 . 1 8 3 . 6 . . . . . . . 1 1 . 137 Critical Strikes 334 | . 4 . 1 . 9 . 6 11 8 . 15 . 4 . . . . 3 4 3 . 266 Burn 1 | . . . . . 1 . . . . . . . . . . . . . . . . . Meltdown 4 | . . . 1 . 3 . . . . . . . . . . . . . . . . . Destroy 290 | . . . . . 3 . 2 . 8 . 12 . . . . . . . . . . 265 Blast 7 | . 4 . . . . . 2 . . . . . . . . . . . . . . 1 Smash 14 | . . . . . . . 2 9 . . . . . . . . . . 2 1 . . Sever 11 | . . . . . . . . 2 . . 3 . 2 . . . . . 2 2 . . Impale 7 | . . . . . 2 . . . . . . . 2 . . . . 3 . . . . Melee Attacks 416 | . . . 8 . 34 . 11 61 1 . 48 . 66 4 . 9 3 55 35 33 25 23 Impact 72 | . . . . . . . 11 47 1 . . . . . . . . . 7 4 2 . Slashing 225 | . . . 8 . 16 . . 14 . . 48 . 43 3 . 2 1 6 9 29 23 23 Piercing 119 | . . . . . 18 . . . . . . . 23 1 . 7 2 49 19 . . . Sneak Attacks 35 | . . . 1 . . . 3 3 1 . 3 . 4 . . . . 10 3 5 2 . Combat Hostiles 4 | . . . . . . . . . . . . . . . . . . 1 1 2 . . Follow-up Attacks 43 | . . . . . 3 . . 16 . . . . 6 . . 2 . 8 7 1 . . Damage Inflicted 97742 | . 1353 658 412 . 4570 . 3479 2684 444 1139 4494 . 1350 78 . 769 56 1679 1350 1934 433 70860 Guns 74664 | . . 77 109 . 2503 . 826 46 . . 3157 . . . . . . . . . . 67946 Cannons 7934 | . 754 323 245 . 1332 . 1097 . 345 1077 . . . . . . . . . . . 2761 Explosions 2986 | . 599 258 . . 23 . 944 337 . 62 197 . . . . . . . . 472 . 94 Melee 12158 | . . . 58 . 712 . 612 2301 99 . 1140 . 1350 78 . 769 56 1679 1350 1462 433 59 Ramming . | . . . . . . . . . . . . . . . . . . . . . . . Kinetic 75551 | . 361 156 109 . 2439 . 1872 46 345 . 3157 . . . . . . . . . . 67066 Thermal 7136 | . 393 244 245 . 1396 . 78 . . 1139 . . . . . . . . . . . 3641 Explosive 1423 | . 599 258 . . . . . . . . . . . . . . . . . 472 . 94 Electromagnetic 1474 | . . . . . 23 . 917 337 . . 197 . . . . . . . . . . . Impact 2853 | . . . . . . . 612 1695 99 . . . . . . . . . 343 104 . . Slashing 5214 | . . . 58 . 257 . . 606 . . 1140 . 505 . . 108 . 139 551 1358 433 59 Piercing 4091 | . . . . . 455 . . . . . . . 845 78 . 661 56 1540 456 . . . Highest Corruption 13 | . . . 2 . . . 6 6 6 6 3 . . . . . . 1 4 . . 13 Average Corruption 6 | . . . 1 . . . 1 2 6 5 2 . . . . . . 1 2 . . 10 Corruption Purged 18 | . . . . . . . 1 4 . 6 3 . . . . . . . . . . 4 Corruption Blocked 20 | . . . . . 6 9 5 . . . . . . . . . . . . . . . Effects 295 | . . . 18 . . . 4 16 22 7 8 . . . . . . 3 11 . . 206 Message Errors 67 | . . . 5 . . . 2 3 7 1 1 . . . . . . 3 5 . . 40 Matter Fused 55 | . . . 6 . . . . 2 8 1 2 . . . . . . . 1 . . 35 Heat Flow Errors 26 | . . . 1 . . . . 3 2 . 2 . . . . . . . 1 . . 17 Energy Discharges 32 | . . . 1 . . . . 3 1 1 1 . . . . . . . 2 . . 23 Parts Rejected 7 | . . . . . . . . 1 . . . . . . . . . . . . . 6 Parts Fused 6 | . . . . . . . . . 1 1 . . . . . . . . . . . 4 Data Loss (minor) 29 | . . . 2 . . . 2 2 2 . 1 . . . . . . . 1 . . 19 Data Loss (major) 17 | . . . 2 . . . . 1 1 . 1 . . . . . . . 1 . . 11 Misfires 2 | . . . 1 . . . . . . 1 . . . . . . . . . . . . Alerts 9 | . . . . . . . . 1 . . . . . . . . . . . . . 8 Misdirections 9 | . . . . . . . . . . . . . . . . . . . . . . 9 Weapon Failures 36 | . . . . . . . . . . 2 . . . . . . . . . . . 34 Overload Shots 2 | . . . . . . . . . . . . . . . . . . . . . . 2 Overflow Damage 2755 | . 16 . 29 . 62 . 176 545 49 7 110 . 45 . . 153 26 267 179 457 269 365 Projectiles 418 | . . . 29 . 6 . 11 . . 7 . . . . . . . . . . . 365 Explosions 67 | . 16 . . . . . 24 . . . 13 . . . . . . . . 14 . . Melee 2270 | . . . . . 56 . 141 545 49 . 97 . 45 . . 153 26 267 179 443 269 . Knockbacks 37 | . 1 3 . . . . 17 4 1 . . . . . . . . . 3 1 . 7 Impact 12 | . . . . . . . 4 3 1 . . . . . . . . . 3 1 . . Kinetic 23 | . 1 3 . . . . 13 . . . . . . . . . . . . . . 6 Secondary 2 | . . . . . . . . 1 . . . . . . . . . . . . . 1 Self-Inflicted Damage 165 | . 53 13 . . . . 14 . . . 85 . . . . . . . . . . . Shots 5 | . 2 1 . . . . 1 . . . 1 . . . . . . . . . . . Rammed . | . . . . . . . . . . . . . . . . . . . . . . . Targets Rammed . | . . . . . . . . . . . . . . . . . . . . . . . Kicked . | . . . . . . . . . . . . . . . . . . . . . . . Crushed . | . . . . . . . . . . . . . . . . . . . . . . . Highest Temperature 600 | . 72 . 240 . 207 . 102 241 251 600 266 . 429 . . . . 487 242 53 . 387 Average Temperature 58 | . 18 . 75 . 76 . 27 108 125 187 99 . 173 . . . . 45 25 13 . 52 Received Heat Transfer 2351 | . 120 48 . . 400 . 180 261 . 45 399 . 24 . 9 . . . 70 72 54 669 Effects 13 | . . . 3 . . . . . . 8 . . . . . . . 1 . . . 1 Shutdowns 3 | . . . . . . . . . . 1 . . . . . . . 1 . . . 1 Energy Bleed 2 | . . . . . . . . . . 2 . . . . . . . . . . . . Interference 5 | . . . 3 . . . . . . 2 . . . . . . . . . . . . Damage (minor) 2 | . . . . . . . . . . 2 . . . . . . . . . . . . Damage (major) 1 | . . . . . . . . . . 1 . . . . . . . . . . . . Siege Activations . | . . . . . . . . . . . . . . . . . . . . . . . Martial Activations . | . . . . . . . . . . . . . . . . . . . . . . . Shielding Activations . | . . . . . . . . . . . . . . . . . . . . . . . Robots Disrupted 1 | . . . . . 1 . . . . . . . . . . . . . . . . . Combat Hostiles . | . . . . . . . . . . . . . . . . . . . . . . . Robots Corrupted 14 | . . . . . . . 2 7 1 . . . . . . . . . 3 1 . . Combat Hostiles 11 | . . . . . . . 2 6 . . . . . . . . . . 3 . . . Parts Fried 20 | . . . . . . . 5 6 1 . 1 . . . . . . . 6 . . 1 Impact Corruptions 26 | . . . . . . . 4 14 1 . . . . . . . . . 4 3 . . Robots Melted 4 | . . . 1 . 3 . . . . . . . . . . . . . . . . . Combat Hostiles 4 | . . . 1 . 3 . . . . . . . . . . . . . . . . . Parts Melted 19 | . . . 3 . 8 . . . . . . . . . . . . . . . . 8 Heat Transferred 7916 | . 814 433 333 . 2029 . 124 . . 50 . . . . . . . . . . . 4133 Parts Sabotaged . | . . . . . . . . . . . . . . . . . . . . . . . Parts Stolen . | . . . . . . . . . . . . . . . . . . . . . . . Parts Stripped . | . . . . . . . . . . . . . . . . . . . . . . . Power Chain Reactions 3 | . . . . . 1 . 1 . . 1 . . . . . . . . . . . . Alert | -11 -10 -10 -7 -7 -5 -5 -5 -5 -5 -5 -4 -4 -4 -4 -4 -4 -3 -3 -3 -2 -2 -2 ------- Run | Yrd Mat Sub Rec Scr Fac Was Fac Ext Cet Arc Fac Was Fac Upp Upp Zhi Pro Res Tes Res Qua Frg Maximum Alert Level 5 | . . . . . 2 . 2 1 . . 3 1 4 . . . . . . 1 2 5 Low Security (%) 47 | 100 100 . 100 . 44 100 47 65 100 100 11 . 3 . . . . 100 100 79 37 4 Level 1 16 | . . . . . 48 . 49 34 . . 7 100 14 . . . . . . 20 39 15 Level 2 9 | . . . . . 6 . 3 . . . 65 . 27 . . . . . . . 23 8 Level 3 6 | . . . . . . . . . . . 16 . 33 . . . . . . . . 10 Level 4 2 | . . . . . . . . . . . . . 20 . . . . . . . . 6 Level 5 16 | . . . . . . . . . . . . . . . . . . . . . . 55 High Security . | . . . . . . . . . . . . . . . . . . . . . . . Max Security . | . . . . . . . . . . . . . . . . . . . . . . . Peak Influence 9076 | . 193 . 38 . 428 145 407 314 182 70 889 306 1168 . . . . 126 130 357 462 9076 Initial 302 | . . . 21 . . 145 38 193 168 . . 302 197 . . . . 121 22 53 174 217 Average 1167 | . 127 . 5 . 202 106 166 166 67 34 528 280 741 . . . . 37 79 146 296 3409 Influence Increases 20626 | . 581 190 226 . 1170 . 713 903 314 184 1377 90 1825 95 252 21 305 391 352 917 521 10199 Destroy 0b10 Robot/C 11160 | . 300 140 20 . 720 . 380 520 160 80 440 . 700 20 120 . 80 20 100 140 20 7200 Destroy 0b10 Robot/NC 640 | . 65 . 35 . 40 . 65 25 10 20 40 . 45 . . 15 . 40 15 25 10 190 Destroy Leader 1860 | . 68 10 . . 160 . 88 60 . . 84 . 116 . 10 . 10 22 30 38 . 1164 Allied During Kill 872 | . . 10 4 . 24 . . 161 50 10 . . 480 . 47 6 20 . . . . 60 Trap Triggered on 0b10 20 | . . . . . . . . . . . 10 . . . . . . . 10 . . . Successful Hack 644 | . 24 . 38 . . . 24 55 . . 52 . 40 . . . . 84 55 90 77 105 Select Force Hacks 110 | . . . 90 . . . . . . . . . . . . . . . 20 . . . Disable Machine 1080 | . 30 . 30 . 105 . 120 45 . 60 75 . 105 . . . . . 90 . 75 345 Anti-Garrison Action 150 | . . . . . . . . . . . . . . . . . . . . 150 . . Destroy Structure 1390 | . 49 . 9 . 76 . 36 22 64 14 226 90 204 . . . . 30 2 84 39 445 Partial Spotted 225 | . . . . . . . . . . . 30 . 30 . . . . 45 15 60 . 45 Lose Combat Pursuer 2475 | . 45 30 . . 45 . . 15 30 . 420 . 105 75 75 . 195 150 15 330 300 645 Influence Decreases 11550 | . 414 313 270 . 754 361 373 996 616 184 514 671 939 573 394 569 124 531 298 702 444 1510 Entered New Map 2914 | . . 81 23 . . 271 17 202 134 . . 561 85 433 132 548 . 60 19 42 136 170 Time Decay 5762 | . 404 202 227 . 444 50 286 464 302 124 444 110 374 140 262 21 70 357 243 270 198 770 Search Patrol Dispatched 200 | . . . . . . . . . . . . . . . . . . . . . 100 100 Lost Part 840 | . 10 10 . . 250 40 70 40 . . 70 . 10 . . . . 20 10 10 10 290 Lost Ally 1134 | . . 20 20 . 60 . . 140 180 60 . . 320 . . . 54 10 10 80 . 180 Purge Threat 700 | . . . . . . . . 150 . . . . 150 . . . . 84 16 300 . . Squads Dispatched 101 | . 2 . . . 8 . 6 2 . . 15 . 13 . . . 1 16 7 11 6 14 Investigation 47 | . 1 . . . 3 . . . . . 9 . 7 . . . 1 13 1 4 3 5 Extermination 16 | . . . . . 2 . 2 . . . 2 . 2 . . . . . 1 3 1 3 Reinforcement 25 | . 1 . . . 3 . 3 2 . . 2 . 3 . . . . 2 3 2 2 2 Assault 11 | . . . . . . . . . . . 2 . 1 . . . . . 2 2 . 4 Garrison 2 | . . . . . . . 1 . . . . . . . . . . 1 . . . . Intercept . | . . . . . . . . . . . . . . . . . . . . . . . Searches Triggered 2 | . . . . . . . . . . . . . . . . . . . . . 1 1 Unchained Authorized 1 | . . . . . . . . . . . . . . . . . . . . . 1 . Construction Impeded 6 | . . . . . . . 3 1 . . 1 . 1 . . . . . . . . . Haulers Reinforced 4 | . . . . . . . . . . . 1 . 1 . . . . 1 . 1 . . Active Scanning Responses . | . . . . . . . . . . . . . . . . . . . . . . . Cargo Convoy Interrupts . | . . . . . . . . . . . . . . . . . . . . . . . Stealth | -11 -10 -10 -7 -7 -5 -5 -5 -5 -5 -5 -4 -4 -4 -4 -4 -4 -3 -3 -3 -2 -2 -2 --------- Run | Yrd Mat Sub Rec Scr Fac Was Fac Ext Cet Arc Fac Was Fac Upp Upp Zhi Pro Res Tes Res Qua Frg Distress Signals 31 | . 3 . . . 1 . . 1 2 . . . 3 . . . . 6 2 2 3 8 Communications Jammed 27 | . . . . . . . . . . . . . . . . . . . 7 2 4 14 Distress Signals 24 | . . . . . . . . . . . . . . . . . . . 4 2 4 14 Times Spotted 1022 | . 24 18 2 . 41 4 25 31 6 10 51 5 24 6 2 . 15 19 23 42 26 648 Peak Tracking Total 15 | . 5 3 2 . 6 4 5 6 5 2 14 4 7 5 5 . 11 7 6 13 10 15 Tactical Retreats 80 | . 2 1 . . 2 . . 1 2 . 10 . 3 3 1 . 3 4 2 9 7 30 Traps | -11 -10 -10 -7 -7 -5 -5 -5 -5 -5 -5 -4 -4 -4 -4 -4 -4 -3 -3 -3 -2 -2 -2 ------- Run | Yrd Mat Sub Rec Scr Fac Was Fac Ext Cet Arc Fac Was Fac Upp Upp Zhi Pro Res Tes Res Qua Frg Traps Triggered 23 | . 2 1 . . 1 . 4 2 . . 4 . 1 . . . . . . . 1 7 Indirectly 3 | . . . . . . . 3 . . . . . . . . . . . . . . . Trap Hack Attempts . | . . . . . . . . . . . . . . . . . . . . . . . Triggered . | . . . . . . . . . . . . . . . . . . . . . . . Disarmed . | . . . . . . . . . . . . . . . . . . . . . . . Reprogrammed 4 | . 4 . . . . . . . . . . . . . . . . . . . . . Reused 2 | . . . . . . . . . . . 1 . . . . . . . 1 . . . Traps Extracted . | . . . . . . . . . . . . . . . . . . . . . . . Installed 3 | . . . . . . . . . 1 . 1 . . . . . . . 1 . . . Triggered 2 | . . . . . . . . . . . 1 . . . . . . . 1 . . . Most Traps Carried 3 | . . 1 . 3 3 3 3 3 3 2 2 1 1 1 1 1 1 1 1 . . . Machines | -11 -10 -10 -7 -7 -5 -5 -5 -5 -5 -5 -4 -4 -4 -4 -4 -4 -3 -3 -3 -2 -2 -2 ---------- Run | Yrd Mat Sub Rec Scr Fac Was Fac Ext Cet Arc Fac Was Fac Upp Upp Zhi Pro Res Tes Res Qua Frg Machines Disabled 88 | . 2 4 2 . 7 . 8 7 . 4 5 . 11 . . . . . 6 1 5 26 Max in Single Turn 4 | . 1 1 1 . 4 . 4 2 . 1 1 . 1 . . . . . 1 1 1 2 Garrison Access 7 | . . . . . . . . . . . 2 . . . . . . 1 1 2 . 1 Machines Repaired . | . . . . . . . . . . . . . . . . . . . . . . . Machines Dismantled 2 | . . . . . . . . 2 . . . . . . . . . . . . . . Machines Sabotaged . | . . . . . . . . . . . . . . . . . . . . . . . Overloaded Fab Kills . | . . . . . . . . . . . . . . . . . . . . . . . Hacking | -11 -10 -10 -7 -7 -5 -5 -5 -5 -5 -5 -4 -4 -4 -4 -4 -4 -3 -3 -3 -2 -2 -2 --------- Run | Yrd Mat Sub Rec Scr Fac Was Fac Ext Cet Arc Fac Was Fac Upp Upp Zhi Pro Res Tes Res Qua Frg Machines Accessed 162 | . 8 4 11 6 8 . 5 10 . . 18 . 12 1 . 4 1 24 12 15 8 15 Terminals 85 | . 5 . 5 . 4 . 4 10 . . 7 . 3 . . . 1 12 8 8 7 11 Fabricators 9 | . . . . . 2 . 1 . . . 1 . . . . . . 4 1 . . . Repair Stations 6 | . 1 . . . 1 . . . . . 1 . . . . . . 1 . 1 . 1 Recycling Units 27 | . 2 . 6 . 1 . . . . . 4 . 6 . . . . 4 . 3 . 1 Scanalyzers 13 | . . . . . . . . . . . 3 . 3 . . . . 2 2 1 1 1 Garrison Access 7 | . . . . . . . . . . . 2 . . . . . . 1 1 2 . 1 Total Hacks 489 | . 21 7 31 25 19 . 8 39 . . 41 . 35 1 . 17 5 84 52 42 23 39 Successful 291 | . 13 7 11 25 10 . 3 14 . . 23 . 18 1 . 17 5 47 39 25 11 22 Failed 197 | . 8 . 20 . 9 . 5 25 . . 17 . 17 . . . . 37 13 17 12 17 Catastrophic 42 | . 2 . 6 . 4 . 3 5 . . 4 . 1 . . . . 7 2 4 2 2 Database Lockouts 1 | . . . . . . . . . . . 1 . . . . . . . . . . . Manual 188 | . 15 . 15 . 6 . . 13 1 . 12 . 17 . . . . 36 27 25 6 15 Terminals 292 | . 16 . 14 . 11 . 6 39 . . 17 . 8 . . . 5 50 47 27 20 32 Fabricators 27 | . . . . . 5 . 2 . . . 3 . . . . . . 15 2 . . . Repair Stations 10 | . 2 . . . 1 . . . . . 1 . . . . . . 3 . 1 . 2 Recycling Units 65 | . 3 . 17 . 2 . . . . . 8 . 18 . . . . 8 . 7 . 2 Scanalyzers 34 | . . . . . . . . . . . 8 . 9 . . . . 7 2 3 3 2 Garrison Access 11 | . . . . . . . . . . . 4 . . . . . . 1 1 4 . 1 Terminal Hacks 156 | . 6 7 2 25 1 . 2 12 . . 5 . 3 1 . 17 5 16 25 11 7 11 Record 41 | . . 4 . 19 . . . . . . . . . . . 5 5 . . . 3 5 Part Schematic 10 | . . . . . . . . 1 . . 2 . . . . 4 . 1 2 . . . Robot Schematic 1 | . 1 . . . . . . . . . . . . . . . . . . . . . Robot Analysis 22 | . 2 . 1 5 . . . 2 . . . . . . . 4 . 1 5 1 1 . Prototype ID Bank 7 | . . . . . . . . . . . . . . . . 4 . 1 2 . . . Open Door 8 | . . 1 . . . . 1 4 . . . . . 1 . . . . . 1 . . Level Access Points 3 | . . . . . . . . . . . . . . . . . . 1 1 1 . . Branch Access Points 3 | . . . . . . . . . . . . . . . . . . 1 1 1 . . Machine Index 1 | . . . . . . . . . . . . . . . . . . . . . 1 . Terminal Index 3 | . 1 . . . . . . . . . 1 . . . . . . . . . 1 . Fabricator Index 1 | . . . . . . . . . . . . . . . . . . 1 . . . . Recycling Unit Index 2 | . . . . . . . 1 . . . . . . . . . . . . . . 1 Alert Level 10 | . . . . . 1 . . 1 . . 1 . . . . . . 2 4 . . 1 Unreport Threat 6 | . . . . . . . . 1 . . . . 1 . . . . 1 1 2 . . Locate Traps 6 | . . . . . . . . 2 . . . . . . . . . 2 2 . . . Reprogram Traps 1 | . 1 . . . . . . . . . . . . . . . . . . . . . Security Status 1 | . . . . . . . . . . . . . . . . . . . . . . 1 Recall Investigation 2 | . . . . . . . . . . . . . 1 . . . . 1 . . . . Recall Extermination 1 | . . . . . . . . . . . . . . . . . . . . 1 . . Recall Reinforcements 1 | . . . . . . . . 1 . . . . . . . . . . . . . . Recall Assault 1 | . . . . . . . . . . . . . . . . . . . . 1 . . Hauler Manifests 2 | . . . . . . . . . . . . . 1 . . . . 1 . . . . Registered Components 3 | . . . . . . . . . . . . . . . . . . 1 1 1 . . Registered Prototypes 4 | . . . . . . . . . . . . . . . . . . 1 1 1 1 . Zone Layout 8 | . 1 . 1 . . . . . . . 1 . . . . . . 1 1 1 . 2 Proto ID Catalog 3 | . . 1 . 1 . . . . . . . . . . . . . . . . . 1 Protovariant Controls 4 | . . . . . . . . . . . . . . . . . . . 4 . . . Release Object 1 | . . 1 . . . . . . . . . . . . . . . . . . . . Fabricator Hacks 14 | . . . . . 4 . 1 . . . 2 . . . . . . 7 . . . . Network Status 1 | . . . . . 1 . . . . . . . . . . . . . . . . . Load Schematic 7 | . . . . . 1 . 1 . . . 1 . . . . . . 4 . . . . Build 6 | . . . . . 2 . . . . . 1 . . . . . . 3 . . . . Repair Station Hacks 2 | . . . . . . . . . . . . . . . . . . 2 . . . . Scan Component 1 | . . . . . . . . . . . . . . . . . . 1 . . . . Repair 1 | . . . . . . . . . . . . . . . . . . 1 . . . . Recycling Unit Hacks 18 | . 2 . 3 . 1 . . . . . 4 . 5 . . . . 1 . 2 . . Retrieve Components 18 | . 2 . 3 . 1 . . . . . 4 . 5 . . . . 1 . 2 . . Scanalyzer 18 | . . . . . . . . . . . 3 . 4 . . . . 5 1 1 2 2 Insert Component 5 | . . . . . . . . . . . 1 . 2 . . . . 2 . . . . Analyze 1 | . . . . . . . . . . . . . . . . . . 1 . . . . Retrieve Study 12 | . . . . . . . . . . . 2 . 2 . . . . 2 1 1 2 2 Garrison Access Hacks 6 | . . . . . . . . . . . 2 . . . . . . 1 1 1 . 1 Seal Access 6 | . . . . . . . . . . . 2 . . . . . . 1 1 1 . 1 Unauthorized Hacks 77 | . 5 . 6 . 4 . . 2 . . 7 . 6 . . . . 15 12 10 2 8 Terminals 49 | . 5 . 3 . 2 . . 2 . . 2 . 1 . . . . 9 9 7 2 7 Track 1 | . . . . . . . . . . . . . . . . . . . . . . 1 Assimilate 5 | . . . . . . . . . . . . . . . . . . 2 2 1 . . Botnet 40 | . 4 . 3 . 2 . . 2 . . 2 . 1 . . . . 7 6 6 2 5 Operators 3 | . 1 . . . . . . . . . . . . . . . . . 1 . . 1 Fabricators 4 | . . . . . . . . . . . . . . . . . . 2 2 . . . Prioritize 1 | . . . . . . . . . . . . . . . . . . 1 . . . . Fabnet 2 | . . . . . . . . . . . . . . . . . . 1 1 . . . Download 1 | . . . . . . . . . . . . . . . . . . . 1 . . . Repair Stations 2 | . . . . . 1 . . . . . 1 . . . . . . . . . . . Patch 2 | . . . . . 1 . . . . . 1 . . . . . . . . . . . Recycling Units 21 | . . . 3 . 1 . . . . . 4 . 5 . . . . 4 . 3 . 1 Tunnel 3 | . . . 3 . . . . . . . . . . . . . . . . . . . Fedlink 17 | . . . . . 1 . . . . . 4 . 4 . . . . 4 . 3 . 1 Scrapoids 1 | . . . . . . . . . . . . . 1 . . . . . . . . . Scanalyzers 1 | . . . . . . . . . . . . . . . . . . . 1 . . . Researchers 1 | . . . . . . . . . . . . . . . . . . . 1 . . . Garrison Access . | . . . . . . . . . . . . . . . . . . . . . . . Data Cores Recovered 4 | . . . . . . . 1 . . . 1 . . . . . . 1 . . . 1 Used 2 | . . . . . . . . . . . 1 . . . . . . . . . . 1 Hacking Detections 117 | . 6 . 10 . 5 . 4 7 . . 13 . 10 . . . 1 21 8 13 6 13 Full Trace Events 27 | . 1 . 6 . 1 . . . . . 3 . 2 . . . 1 9 . 1 2 1 Feedback Events 3 | . . . 2 . . . . . . . . . . . . . . 1 . . . . Corruption 3 | . . . 2 . . . . . . . . . . . . . . 1 . . . . Feedback Blocked . | . . . . . . . . . . . . . . . . . . . . . . . Robot Schematics Acquired 5 | . 1 . . . . . . . . . . . . . . . . . 4 . . . Robots Built . | . . . . . . . . . . . . . . . . . . . . . . . Authchips . | . . . . . . . . . . . . . . . . . . . . . . . Time . | . . . . . . . . . . . . . . . . . . . . . . . Total Robot Build Rating . | . . . . . . . . . . . . . . . . . . . . . . . Part Schematics Acquired 63 | . . . . 8 7 1 2 10 2 4 7 1 2 . . 4 . 2 13 . . . Parts Built 7 | . . . . . 3 . . . . . 1 . . . . . . 3 . . . . Authchips 1 | . . . . . 1 . . . . . . . . . . . . . . . . . Time 368 | . . . . . 145 . . . . . 42 . . . . . . 181 . . . . Total Part Build Rating 40 | . . . . . 18 . . . . . 4 . . . . . . 18 . . . . Part Studies Acquired 12 | . . . . . . . . . . . 2 . 2 . . . . 2 1 1 2 2 Parts Repaired 1 | . . . . . . . . . . . . . . . . . . 1 . . . . Time 23 | . . . . . . . . . . . . . . . . . . 23 . . . . Parts Recycled . | . . . . . . . . . . . . . . . . . . . . . . . Recycled Matter . | . . . . . . . . . . . . . . . . . . . . . . . Retrieved Matter . | . . . . . . . . . . . . . . . . . . . . . . . Retrieved Components 78 | . 9 . 12 . . . . . . . 24 . 20 . . . . 10 . 3 . . Parts Scanalyzed 2 | . . . . . . . . . . . 1 . 1 . . . . . . . . . Part Schematics Acquired 1 | . . . . . . . . . . . . . . . . . . 1 . . . . Parts Damaged 2 | . . . . . . . . . . . 1 . 1 . . . . . . . . . Bothacking | -11 -10 -10 -7 -7 -5 -5 -5 -5 -5 -5 -4 -4 -4 -4 -4 -4 -3 -3 -3 -2 -2 -2 ------------ Run | Yrd Mat Sub Rec Scr Fac Was Fac Ext Cet Arc Fac Was Fac Upp Upp Zhi Pro Res Tes Res Qua Frg Used RIF Installer . | . . . . . . . . . . . . . . . . . . . . . . . Robots Hacked 24 | . . . . . . . . . . . . . . . . . . . 2 4 . 18 Non-combat 1 | . . . . . . . . . . . . . . . . . . . . 1 . . Combat 19 | . . . . . . . . . . . . . . . . . . . . 3 . 16 Robot Hacks Applied 1 | . . . . . . . . . . . . . . . . . . . . 1 . . find_recycling 1 | . . . . . . . . . . . . . . . . . . . . 1 . . Manual 4 | . . . . . . . . . . . . . . . . . . . 2 . . 2 Relay Couplers Released 4 | . . . . . . . . . . . . . . . . . . . . . . 4 Programmers 4 | . . . . . . . . . . . . . . . . . . . . . . 4 Fabnet Peak Effective % 3 | . . . . . . . . . . . . . . . . . . . . 3 3 3 Autooverrided 19 | . . . . . . . . . . . . . . . . . . . . 3 . 16 Robots Rewired 9 | . . . 5 . . . . 4 . . . . . . . . . . . . . . Allies Hacked . | . . . . . . . . . . . . . . . . . . . . . . . Hacks Repelled . | . . . . . . . . . . . . . . . . . . . . . . . Allies | -11 -10 -10 -7 -7 -5 -5 -5 -5 -5 -5 -4 -4 -4 -4 -4 -4 -3 -3 -3 -2 -2 -2 -------- Run | Yrd Mat Sub Rec Scr Fac Was Fac Ext Cet Arc Fac Was Fac Upp Upp Zhi Pro Res Tes Res Qua Frg Total Allies 89 | . . 13 5 . . . . 10 10 . . 19 5 . 4 . . 1 2 4 . 16 Largest Group 19 | . . 6 7 6 6 . . 8 5 3 . 19 16 . 4 4 4 1 2 2 . 2 Highest-Rated Group 702 | . . 114 209 190 190 . . 341 480 139 . 702 627 . 321 321 321 26 36 84 . 84 Highest-Rated Ally 159 | . . 22 40 40 40 . . 159 153 47 . 50 50 . 81 81 81 26 26 64 . 82 Total Orders . | . . . . . . . . . . . . . . . . . . . . . . . Ally Attacks 629 | . . 29 12 . 23 . . 70 58 24 . 108 231 . 16 . 12 . . 11 . 35 Total Damage 19504 | . . 624 266 . 525 . . 2689 2336 477 . 3724 6256 . 326 . 396 . . 387 . 1498 Kills 105 | . . 7 2 . 4 . . 19 5 2 . 8 41 . 6 . 3 . . . . 8 Allies Corrupted 3 | . . . . . . . . 1 1 . . . . . . . . . . 1 . . Allies Melted 2 | . . . . . . . . . . . . . . . . . . . . . . 2 Intel | -11 -10 -10 -7 -7 -5 -5 -5 -5 -5 -5 -4 -4 -4 -4 -4 -4 -3 -3 -3 -2 -2 -2 ------- Run | Yrd Mat Sub Rec Scr Fac Was Fac Ext Cet Arc Fac Was Fac Upp Upp Zhi Pro Res Tes Res Qua Frg Active Infowar (turns) 14088 | . . 297 . . 139 109 508 1162 668 . 1201 221 869 286 564 110 298 1008 575 586 407 5080 Optics 12150 | . . 244 . . . . . 981 668 . 253 221 869 286 564 110 298 1008 575 586 407 5080 Sensors 6344 | . . 53 . . . . . . . . 867 221 845 286 564 110 298 930 575 586 405 604 Structural 3876 | . . . . . 128 22 506 262 . . 366 . . . . . . 945 573 586 222 266 Seismic 98 | . . . . . 11 87 . . . . . . . . . . . . . . . . Cloaking 207 | . . . . . . . . . . . . . . . . . . . . . 56 151 Jamming 825 | . . . . . . . 2 . . . 2 7 62 . . . . 105 171 38 104 334 ECM 1 | . . . . . . . . . . . . . . . . . . . 1 . . . Robot Analysis Total 21 | . 2 . 1 5 . . . 2 . . . . . . . 4 . 1 4 1 1 . Derelict Logs Recovered 6 | . . 1 . 2 . . . . . . . . . 1 2 . . . . . . . Drone Launches 15 | . . . . . . . . 15 . . . . . . . . . . . . . . Drone Recoveries 3 | . . . . . . . . 3 . . . . . . . . . . . . . . Exploration | -11 -10 -10 -7 -7 -5 -5 -5 -5 -5 -5 -4 -4 -4 -4 -4 -4 -3 -3 -3 -2 -2 -2 ------------- Run | Yrd Mat Sub Rec Scr Fac Was Fac Ext Cet Arc Fac Was Fac Upp Upp Zhi Pro Res Tes Res Qua Frg Turns Passed 22920 | 36 1074 2883 1524 1872 1171 109 829 1162 727 317 1213 221 869 286 564 110 298 1008 575 586 407 5079 Spaces Moved 23668 | 36 755 2216 1160 1595 601 79 420 726 339 141 1495 249 1241 532 857 178 507 2006 954 1324 710 5547 Core 5 | 5 . . . . . . . . . . . . . . . . . . . . . . Treads 6 | . . . . . . . 6 . . . . . . . . . . . . . . . Legs 1335 | . . . . . . . 81 726 339 58 . . . . . . . . . . . 131 Wheels 7105 | 31 755 2216 1160 1595 601 78 330 . . 83 256 . . . . . . . . . . . Hover 5794 | . . . . . . . . . . . . . . . . . . . . . 378 5416 Flight 9423 | . . . . . . 1 3 . . . 1239 249 1241 532 857 178 507 2006 954 1324 332 . Fastest Speed 24 | 50 80 107 105 115 100 125 101 120 120 90 34 40 29 29 29 29 29 29 30 30 24 40 Average Speed 63 | 75 107 111 117 115 116 132 139 120 120 104 45 40 32 29 44 29 29 29 30 30 37 42 Slowest Speed 360 | 80 110 155 120 115 175 280 360 190 120 120 90 40 40 29 69 80 29 30 32 32 54 170 Overloaded Moves 35 | . . . . . . . . . . . . . . . . . . . . . 35 . Propulsion Burnouts . | . . . . . . . . . . . . . . . . . . . . . . . Robots Hopped 34 | . . . . . . . . 2 4 . 7 . 5 . . . . 7 8 1 . . Potential Cave-ins 13 | . . . . . . . . . . . 9 . . . . . . . . . . 4 Cave-ins Triggered . | . . . . . . . . . . . . . . . . . . . . . . . Teleports 2 | . . . . . . . . . . . . . . . . . . . . . . 2 Exploration Rate (%) 67 | 3 99 94 98 94 24 77 10 86 70 78 36 87 40 70 88 63 73 52 94 44 92 81 Regions Visited 22 Branch Regions 13 Pre-discovered Areas 7 | . . . 3 . . . . . . . 1 . . . . 3 . . . . . . Known Exits Taken 12 | . . 1 . . . . 1 . . 1 . . 1 1 1 1 1 1 1 1 1 . Unknown Exits Taken 6 | 1 1 . 1 1 . . . 1 1 . . . . . . . . . . . . . Scrap Searched 19 | . . 10 . 2 . . . . . . . . . 1 4 . 2 . . . . . Spaces Dug 120 | . . 2 . . 2 . 3 1 . . 18 . 27 2 . . 1 15 1 13 13 22 Terrain Destroyed 526 | . 47 6 5 . 53 . 15 3 3 2 129 . 27 2 . . 1 15 1 26 13 178 Melee 117 | . . . . . 2 . 3 1 . . 18 . 27 2 . . 1 15 1 13 13 21 Projectile 314 | . . 6 5 . 40 . 9 2 3 2 92 . . . . . . . . . . 155 AOE 93 | . 47 . . . 11 . 3 . . . 19 . . . . . . . . 13 . . Terrain Rammed . | . . . . . . . . . . . . . . . . . . . . . . . Walls Destroyed . | . . . . . . . . . . . . . . . . . . . . . . . Machines Disabled . | . . . . . . . . . . . . . . . . . . . . . . . Actions | -11 -10 -10 -7 -7 -5 -5 -5 -5 -5 -5 -4 -4 -4 -4 -4 -4 -3 -3 -3 -2 -2 -2 --------- Run | Yrd Mat Sub Rec Scr Fac Was Fac Ext Cet Arc Fac Was Fac Upp Upp Zhi Pro Res Tes Res Qua Frg Total 29333 | 41 934 2560 1294 1636 851 82 569 911 629 273 1832 370 1621 658 1038 225 655 2343 1202 1475 805 7329 Wait 3179 | . 87 240 58 15 59 . 19 68 200 93 151 121 293 120 180 25 138 246 160 98 13 795 Move 23580 | 35 754 2215 1159 1594 601 78 419 722 331 140 1481 248 1230 531 856 177 506 1991 937 1321 709 5545 Hop 32 | . . . . . . . . 1 3 . 7 . 5 . . . . 7 8 1 . . Pick Up 156 | . 12 13 12 12 6 . 6 4 9 2 4 . 6 1 . 2 2 3 5 . 12 45 Fast Attach 368 | 6 9 9 4 1 40 3 25 15 20 9 29 . 13 . 1 7 . 28 26 7 14 102 Attach 84 | . 1 2 . 4 5 1 3 2 1 1 11 . 3 . . . 1 1 2 2 8 36 Detach 50 | . 2 1 3 1 1 . 3 1 2 . 8 . 1 . . . 1 2 2 2 1 19 Swap 117 | . 13 10 1 . 3 . 5 6 4 . 5 . 3 1 . . 1 3 4 4 5 49 Drop 390 | . 12 30 8 8 13 . 17 14 28 14 29 1 18 2 1 8 3 24 33 7 20 100 Fire 926 | . 44 40 10 . 92 . 61 6 29 14 58 . . . . . . . 2 4 1 565 Melee 333 | . . . 8 . 31 . 11 40 1 . 48 . 49 3 . 6 2 38 22 29 22 23 Ram 1 | . . . . . . . . . . . . . . . . . . . . . . 1 Kick . | . . . . . . . . . . . . . . . . . . . . . . . Crush . | . . . . . . . . . . . . . . . . . . . . . . . Escape Stasis 49 | . . . . . . . . . . . . . . . . . . . . . . 49 Rewire 44 | . . . 31 1 . . . 12 . . . . . . . . . . . . . . Trap 3 | . . . . . . . . . 1 . 1 . . . . . . . 1 . . . Miscellaneous 21 | . . . . . . . . 20 . . . . . . . . 1 . . . . . Route ------- -11/Scrapyard -10/Materials (discovered 5 exits: [*Mat x3] / [*Min] / *Sub) -10/Subcaves (discovered 3 exits: *Mat x2 / *Rec) -7/Recycling (discovered 2 exits: *Fac / *Scr) -7/Scraptown (discovered 2 exits: *Fac x2) -5/Factory (discovered 8 exits: Fac x4 / Upp x2 / Ext x2) -5/Waste -5/Factory -5/Extension (discovered 2 exits: *Fac / *Cet) -5/Cetus (discovered 2 exits: *Fac / [*Arc]) -5/Archives (discovered 3 exits: *Fac / [*Hub x2]) -4/Factory (discovered 3 exits: *Res x2 / *Upp) -4/Waste -4/Factory (discovered 3 exits: *Res / *Upp / *Arm) -4/Upper Caves -4/Upper Caves (discovered 2 exits: *Res / *Zhi) -4/Zhirov -3/Proximity Caves -3/Research (discovered 5 exits: *Res x3 / *Tes x2) -3/Testing -2/Research (discovered 5 exits: *Acc x3 / *Qua x2) -2/Quarantine (discovered 2 exits: *Sec / *Frg) -2/Protoforge 0bPrime History --------- Turn | Location | Event 8 | -11/Scrapyard | Discovered new exit (range 15) 37 | -11/Scrapyard | Entered Materials 276 | -10/Materials | Discovered new exit (range 6) 303 | -10/Materials | Build established: Mutant 327 | -10/Materials | Discovered new exit (range 10) 552 | -10/Materials | Discovered new exit (range 6) 630 | -10/Materials | Discovered new exit (range 10) 823 | -10/Materials | Discovered new exit (range 12) 1051 | -10/Materials | Build established: Scavenger-Mutant 1111 | -10/Materials | Entered Subcaves 1112 | -10/Subcaves | Approached by a straggling Scientist 1563 | -10/Subcaves | Visited triangular shrine 1570 | -10/Subcaves | Found Prototype Device 1571 | -10/Subcaves | Identified V3-11A's Pendant 1576 | -10/Subcaves | Befriended Subdweller 1636 | -10/Subcaves | Befriended Subdweller 1636 | -10/Subcaves | Befriended Subdweller 1682 | -10/Subcaves | Visited Clippyterm 1686 | -10/Subcaves | Identified exit to Recycling 1686 | -10/Subcaves | Identified exit to Materials 1686 | -10/Subcaves | Learned 40 Factory zone layouts 1798 | -10/Subcaves | Shifting Twisted Machinery released Riot Gun 1800 | -10/Subcaves | Shifting Twisted Machinery released Battle Cannon 1801 | -10/Subcaves | Befriended Subdweller 1897 | -10/Subcaves | Learned Materials terminal intel 1933 | -10/Subcaves | Visited 4L-MR0's lab 1945 | -10/Subcaves | Found Power Bank 2014 | -10/Subcaves | A swath of the cavern ceiling suddenly collapsed 2159 | -10/Subcaves | Shifting Twisted Machinery released Sub. Shrapnel Launcher 2181 | -10/Subcaves | A Subdweller sparked back to life 2181 | -10/Subcaves | A Subdweller sparked back to life 2181 | -10/Subcaves | A Subdweller sparked back to life 2186 | -10/Subcaves | Befriended Subdweller 2186 | -10/Subcaves | Befriended Subdweller 2206 | -10/Subcaves | Found Flightbrick 2328 | -10/Subcaves | Found SUBCON Basin 2361 | -10/Subcaves | Befriended Subdweller 2602 | -10/Subcaves | Shifting Twisted Machinery released Sub. Beam Cannon 2602 | -10/Subcaves | Shifting Twisted Machinery released Battle Rifle 2753 | -10/Subcaves | Lost 3 allies 2900 | -10/Subcaves | Build established: Mutant 2961 | -10/Subcaves | Befriended Subdweller 2976 | -10/Subcaves | Befriended Subdweller 3351 | -10/Subcaves | A swath of the cavern ceiling suddenly collapsed 3371 | -10/Subcaves | Befriended Subdweller 3371 | -10/Subcaves | Befriended Subdweller 3476 | -10/Subcaves | Befriended Subdweller 3626 | -10/Subcaves | Befriended Subdweller 3994 | -10/Subcaves | Entered Recycling 3994 | -7/Recycling | Accompanied by 3 allies 3998 | -7/Recycling | Lost 3 allies 4321 | -7/Recycling | Discovered new exit (range 8) 4414 | -7/Recycling | Scanned before Scraplab entrance 4431 | -7/Recycling | Entered Scraplab 4611 | -7/Recycling | Build established: Commander-Mutant 5508 | -7/Recycling | Discovered new exit (range 3) 5518 | -7/Recycling | Entered Scraptown 5518 | -7/Scraptown | Accompanied by 6 allies 5518 | -7/Scraptown | System corruption cleaned by C-Scrubber 5590 | -7/Scraptown | Delivered V3-11A's Pendant to T0-NE2 in exchange for information 5847 | -7/Scraptown | Visited Fellowship of the Rings 5884 | -7/Scraptown | Visited Symbiants 5893 | -7/Scraptown | Heard Great Nut preacher, LISTEN AND RECITE! 5898 | -7/Scraptown | Visited TADAMA 5919 | -7/Scraptown | Visited Comm Corps 6219 | -7/Scraptown | Scanned Subdweller tech in exchange for log data 6222 | -7/Scraptown | Learned Research terminal intel 6223 | -7/Scraptown | Learned Factory stockpile data 6239 | -7/Scraptown | Discovered new exit (range 7) 6315 | -7/Scraptown | Visited Assassins FH 6328 | -7/Scraptown | Visited Cyclists 6351 | -7/Scraptown | Visited Science Testing Area 6413 | -7/Scraptown | Visited UFD Registry 6413 | -7/Scraptown | Registered with UFD as "Pipegrid" 6454 | -7/Scraptown | Entered Cyclist Reading Room 6525 | -7/Scraptown | Visited Scrap Suit Storage 6565 | -7/Scraptown | Visited Science Guys 6625 | -7/Scraptown | Visited Scrapoid Pod Storage 6634 | -7/Scraptown | Tech Extrapolator generated special schematic: Machine Rigger 6659 | -7/Scraptown | Delivered Scrap Shield to a Scientist 6775 | -7/Scraptown | Found Scrapoid Pod 6794 | -7/Scraptown | Visited Scrapoid Research Area 6837 | -7/Scraptown | Visited Research Penetration Think Tank 6861 | -7/Scraptown | Visited Junk Repository 6887 | -7/Scraptown | Visited Derelict Rescue Squad 6895 | -7/Scraptown | Found DRS Beacon 6916 | -7/Scraptown | Visited Analyses Database 6944 | -7/Scraptown | Visited Curators Association 6972 | -7/Scraptown | Visited LU-1G1's Boring Crew 7033 | -7/Scraptown | Tech Extrapolator generated special schematic: Deep Structural Scanner 7311 | -7/Scraptown | Met Optimus 7311 | -7/Scraptown | Accepted into 0bPrime 7375 | -7/Scraptown | Discovered new exit (range 3) 7390 | -7/Scraptown | Entered Factory 7390 | -5/Factory | Accompanied by 6 allies 7390 | -5/Factory | Evolved 10 slots: Propulsion x2, Utility x7, Weapon x1 7391 | -5/Factory | Identified exit to Factory 7391 | -5/Factory | Identified exit to Upper Caves 7391 | -5/Factory | Identified exit to Extension 7478 | -5/Factory | Loaded intel: 8 recycling unit locations 7685 | -5/Factory | Lost 3 allies 7750 | -5/Factory | Lost 8 parts (2p3n1u2w) 7940 | -5/Factory | Destroyed 8 combat bots 7964 | -5/Factory | Fabricated Railgun? 7983 | -5/Factory | Lost 6 parts (2n2u2w) 8235 | -5/Factory | Core integrity fell below 50% 8253 | -5/Factory | Lost 5 parts (2n2u1w) 8324 | -5/Factory | Fabricated Deep Structural Scanner (x1) 8524 | -5/Factory | Lost 3 parts (2n1u) 8561 | -5/Factory | Sucked down chute 8561 | -5/Factory | Entered Waste 8574 | -5/Waste | Spotted C-40 Crusher 8576 | -5/Waste | EMP discharged 8603 | -5/Waste | Spotted C-40 Crusher 8611 | -5/Waste | Spotted C-40 Crusher 8615 | -5/Waste | Spotted C-40 Crusher 8622 | -5/Waste | Crushed by Compactor (1 part destroyed, 1 dropped) 8623 | -5/Waste | Crushed by Compactor (1 part destroyed, 1 dropped) 8637 | -5/Waste | Spotted C-40 Crusher 8648 | -5/Waste | Crushed by Compactor (1 part destroyed, 2 dropped) 8655 | -5/Waste | Discovered new exit (range 11) 8670 | -5/Waste | Entered Factory 8679 | -5/Factory | Lost 4 parts (1p1n1u1w) 8997 | -5/Factory | Lost 3 parts (1n2u) 9027 | -5/Factory | Core integrity fell below 20% 9186 | -5/Factory | Discovered exit to Extension (range 10) 9266 | -5/Factory | Build established: Scavenger-Mutant 9330 | -5/Factory | Garrison activated, responded to threat 9499 | -5/Factory | Entered Extension 9626 | -5/Extension | Lost 4 parts (1n1u2w) 9636 | -5/Extension | Rescued A7 9807 | -5/Extension | Rescued a captive Derelict 9886 | -5/Extension | Rescued a captive Derelict 9905 | -5/Extension | Rescued a captive Derelict 10028 | -5/Extension | Build established: Scavenger-Gladiator 10149 | -5/Extension | Disrupted transfer network 10162 | -5/Extension | Spotted B-75 Beast 10169 | -5/Extension | Spotted B-75 Beast 10189 | -5/Extension | Allies destroyed B-75 Beast 10197 | -5/Extension | Destroyed B-75 Beast 10234 | -5/Extension | Lost 6 allies 10282 | -5/Extension | Rescued a captive Derelict 10283 | -5/Extension | Rescued a captive Derelict 10359 | -5/Extension | Rescued a captive Derelict 10633 | -5/Extension | Discovered exit to Factory (range 13) 10633 | -5/Extension | Discovered new exit (range 9) 10656 | -5/Extension | Lost 4 allies 10661 | -5/Extension | Entered Cetus 10661 | -5/Cetus | Accompanied by 5 allies (A7) 10666 | -5/Cetus | Acquired a Cetus Manufacturing Module code from A7 10682 | -5/Cetus | Spotted Cetus Guard 10683 | -5/Cetus | Spotted Cetus Guard 10685 | -5/Cetus | Spotted Cetus Guard 10691 | -5/Cetus | Spotted Cetus Guard 10710 | -5/Cetus | Destroyed Cetus Guard 10719 | -5/Cetus | Destroyed Cetus Guard 10727 | -5/Cetus | Destroyed Cetus Guard 10736 | -5/Cetus | Lost 5 allies 10737 | -5/Cetus | Destroyed Cetus Guard 10763 | -5/Cetus | Found Prototype Protection 10763 | -5/Cetus | Identified Med. Regenerative Plating 10764 | -5/Cetus | Extracted ID and sensor layout for unrecognized location from A7's data core 10842 | -5/Cetus | Started Cetus Manufacturing Module 10867 | -5/Cetus | Manufactured an Enhanced Grunt 10892 | -5/Cetus | Manufactured an Enhanced Grunt 10917 | -5/Cetus | Manufactured an Enhanced Grunt 10942 | -5/Cetus | Manufactured an Enhanced Grunt 10967 | -5/Cetus | Manufactured an Enhanced Grunt 11100 | -5/Cetus | Discovered new exit (range 21) 11134 | -5/Cetus | Spotted Cetus Guard 11144 | -5/Cetus | Spotted Cetus Guard 11145 | -5/Cetus | Spotted Cetus Guard 11149 | -5/Cetus | Spotted Cetus Guard 11154 | -5/Cetus | Allies destroyed Cetus Guard 11168 | -5/Cetus | Allies destroyed Cetus Guard 11193 | -5/Cetus | Build established: Scavenger-Mutant 11197 | -5/Cetus | Scrapoid Pod released 05C06-D (x5) 11201 | -5/Cetus | Lost 4 allies 11218 | -5/Cetus | Found Prototype Device 11218 | -5/Cetus | Identified Exp. Thermal Shield 11220 | -5/Cetus | Allies destroyed Cetus Guard 11225 | -5/Cetus | Allies destroyed Cetus Guard 11229 | -5/Cetus | Discovered exit to Factory (range 22) 11289 | -5/Cetus | Met Revision 17 11388 | -5/Cetus | Entered Archives 11388 | -5/Archives | Accompanied by 3 allies 11446 | -5/Archives | Lost 3 allies 11586 | -5/Archives | Discovered new exit (range 16) 11600 | -5/Archives | Found Scrap Suit 11648 | -5/Archives | Discovered new exit (range 16) 11659 | -5/Archives | Discovered exit to Factory (range 16) 11705 | -5/Archives | Entered Factory 11705 | -4/Factory | Evolved 2 slots: Propulsion x1, Utility x1 11842 | -4/Factory | Discovered new exit (range 8) 11894 | -4/Factory | Build established: Scavenger-Scrapper 11915 | -4/Factory | Discovered new exit (range 13) 11955 | -4/Factory | First assault squad dispatched 12053 | -4/Factory | Loaded intel: 8 recycling unit locations 12053 | -4/Factory | Learned location of Protoforge (-2) 12153 | -4/Factory | Attached Flightbrick, gained temporary slots: Utility x3 12177 | -4/Factory | Lost 4 parts (2u2w) 12409 | -4/Factory | Central database locked down 12555 | -4/Factory | Attached Power Bank, gained temporary slots: Power x3 12596 | -4/Factory | Build established: Scavenger-Mutant 12602 | -4/Factory | Discovered new exit (range 8) 12604 | -4/Factory | Identified exit to Research 12810 | -4/Factory | Fabricated Mak. Hacking Suite (x1) 12839 | -4/Factory | Tech Extrapolator generated special schematic: Energy Deflector 12918 | -4/Factory | Manually triggered Chute Trap 12918 | -4/Factory | Sucked down chute 12918 | -4/Factory | Entered Waste 12945 | -4/Waste | Spotted C-40 Crusher 12968 | -4/Waste | Spotted C-40 Crusher 12968 | -4/Waste | Spotted C-40 Crusher 13024 | -4/Waste | Spotted C-40 Crusher 13024 | -4/Waste | Spotted C-40 Crusher 13031 | -4/Waste | Spotted C-40 Crusher 13036 | -4/Waste | Warlord forces began an assault 13039 | -4/Waste | Allies destroyed C-40 Crusher 13042 | -4/Waste | Allies destroyed C-40 Crusher 13053 | -4/Waste | Allies destroyed C-40 Crusher 13059 | -4/Waste | Allies destroyed C-40 Crusher 13072 | -4/Waste | Discovered new exit (range 10) 13075 | -4/Waste | Identified exit to Factory 13090 | -4/Waste | Lost 3 allies 13139 | -4/Waste | Allies destroyed C-40 Crusher 13139 | -4/Waste | Entered Factory 13139 | -4/Factory | Accompanied by 16 allies 13206 | -4/Factory | Build established: Hacker-Ninja 13283 | -4/Factory | Loaded intel: 8 recycling unit locations 13340 | -4/Factory | Lost 3 allies 13403 | -4/Factory | Discovered new exit (range 13) 13499 | -4/Factory | Lost 9 allies 13582 | -4/Factory | Scrapoid reinforcements arrived 13632 | -4/Factory | Identified exit to Armory 13639 | -4/Factory | First assault squad dispatched 13791 | -4/Factory | Allied Derelicts emerged from ambush trap array 13823 | -4/Factory | Discovered new exit (range 19) 13828 | -4/Factory | Identified exit to Upper Caves 13870 | -4/Factory | Discovered exit to Research (range 18) 13901 | -4/Factory | Found Prototype Processor 13901 | -4/Factory | Identified Exp. Terrain Scan Processor 14008 | -4/Factory | Entered Upper Caves 14010 | -4/Upper Caves | UFD Scientist delivered a prototype 14013 | -4/Upper Caves | Found Prototype Protection 14095 | -4/Upper Caves | Learned location of 1 exit from Research 14096 | -4/Upper Caves | Attracted the attention of an 0b10 checkpoint 14133 | -4/Upper Caves | Discovered new exit (range 20) 14138 | -4/Upper Caves | Identified exit to Upper Caves 14294 | -4/Upper Caves | Entered another Upper Caves area 14309 | -4/Upper Caves | Discovered exit to Research (range 9) 14333 | -4/Upper Caves | Learned Research terminal intel 14464 | -4/Upper Caves | Prototype Device suddenly appears! 14466 | -4/Upper Caves | Found Prototype Device 14466 | -4/Upper Caves | Identified Amulet of Y3-NDR 14513 | -4/Upper Caves | Joined by bewildered Wizard 14515 | -4/Upper Caves | Joined by bewildered Wizard 14516 | -4/Upper Caves | Joined by bewildered Wizard 14545 | -4/Upper Caves | Joined by bewildered Wizard 14563 | -4/Upper Caves | Learned 4 Research zone layouts 14605 | -4/Upper Caves | Discovered new exit (range 18) 14610 | -4/Upper Caves | Identified exit to Zhirov 14858 | -4/Upper Caves | Entered Zhirov 14858 | -4/Zhirov | Accompanied by 4 allies 14858 | -4/Zhirov | Discovered new exit (range 3) 14864 | -4/Zhirov | Met Zhirov 14870 | -4/Zhirov | Learned location of Quarantine (-2) 14870 | -4/Zhirov | Learned location of Testing (-3) 14870 | -4/Zhirov | Learned location of Command (-1) 14874 | -4/Zhirov | Zhirov requested help retrieving the SGEMP Prototype 14889 | -4/Zhirov | Found Alien Artifact 14894 | -4/Zhirov | Found Alien Artifact 14894 | -4/Zhirov | Identified Integrated Reactor 14894 | -4/Zhirov | Installed Integrated Reactor, increased core energy generation (+10) 14952 | -4/Zhirov | Identified exit to Proximity Caves 14968 | -4/Zhirov | Entered Proximity Caves 14968 | -3/Proximity Caves | Accompanied by 4 allies 15171 | -3/Proximity Caves | Discovered exit to Research (range 10) 15173 | -3/Proximity Caves | Lost 4 allies 15208 | -3/Proximity Caves | Activated DRS Beacon 15236 | -3/Proximity Caves | Attracted the attention of an 0b10 base 15238 | -3/Proximity Caves | Learned 8 Research zone layouts 15238 | -3/Proximity Caves | Learned Research emergency access door positions 15266 | -3/Proximity Caves | Lost 4 allies 15266 | -3/Proximity Caves | Entered Research 15266 | -3/Research | Evolved 2 slots: Propulsion x1, Utility x1 15267 | -3/Research | Identified exit to Research 15268 | -3/Research | Identified exit to Testing 15271 | -3/Research | Loaded intel: 23 terminal locations 15324 | -3/Research | Fabricated Deep Structural Scanner (x1) 15461 | -3/Research | Garrison activated, responded to threat 15466 | -3/Research | Revision forces began assault on 0b10 15473 | -3/Research | Found Prototype Processor 15473 | -3/Research | Identified Exp. Target Analyzer 15665 | -3/Research | Loaded intel: 5 recycling unit locations 15689 | -3/Research | Identified Transdimensional Reconstructor 15753 | -3/Research | Spotted B-86 Titan 15966 | -3/Research | Research terminal network offline 16013 | -3/Research | Fabricated Exp. Optical Array? 16017 | -3/Research | Found Prototype Hackware 16017 | -3/Research | Identified Exp. Hacking Suite 16054 | -3/Research | Repaired Broken Adv. Sensor Array 16186 | -3/Research | Fabricated Exp. Optical Array (x1) 16274 | -3/Research | Entered Testing 16324 | -3/Testing | Protovariant out of control (PG-2Q43LEB1U3) 16324 | -3/Testing | Unleashed a protovariant (PG-2Q43LEB1U3) 16342 | -3/Testing | Protovariant out of control (PP-QWS6MBVTDY) 16342 | -3/Testing | Unleashed a protovariant (PP-QWS6MBVTDY) 16400 | -3/Testing | Found Prototype Ballistic Cannon 16434 | -3/Testing | Found Prototype Ballistic Gun 16454 | -3/Testing | Spotted PP-QWS6MBVTDY 16494 | -3/Testing | Unstable Terrabomb Derivative detonated 16516 | -3/Testing | Spotted Striker 16516 | -3/Testing | Spotted Striker 16521 | -3/Testing | Found Prototype Energy Gun 16521 | -3/Testing | Identified Warp Gun 16543 | -3/Testing | Found Prototype Device 16543 | -3/Testing | Identified Exp. ECM Suite 16651 | -3/Testing | PP-QWS6MBVTDY assimilated allied U-05 Engineer 16667 | -3/Testing | Found Prototype Processor 16667 | -3/Testing | Identified Exp. Signal Interpreter 16739 | -3/Testing | Found Prototype Energy Cannon 16739 | -3/Testing | Identified Potential Cannon 16741 | -3/Testing | Identified Omega Cannon 16743 | -3/Testing | Identified Hyp. Multirail 16849 | -3/Testing | Entered Research 16849 | -2/Research | Accompanied by 1 ally 16849 | -2/Research | Evolved 1 slot: Weapon x1 16850 | -2/Research | Loaded intel: 24 terminal locations 16883 | -2/Research | Identified exit to Access 16920 | -2/Research | Identified exit to Quarantine 17120 | -2/Research | Loaded intel: 5 recycling unit locations 17413 | -2/Research | Build established: Hacker-Scout 17435 | -2/Research | Entered Quarantine 17462 | -2/Quarantine | Found Alien Artifact 17462 | -2/Quarantine | Identified Phase Redirector 17574 | -2/Quarantine | Found Alien Slashing Weapon 17574 | -2/Quarantine | Identified Sigix Broadsword 17685 | -2/Quarantine | Search patrols dispatched 17713 | -2/Quarantine | Found Alien Reactor 17713 | -2/Quarantine | Identified Matter Drive 17742 | -2/Quarantine | Found Alien Artifact 17758 | -2/Quarantine | Build established: Hacker-Ninja 17762 | -2/Quarantine | Identified Subatomic Replicator 17762 | -2/Quarantine | Used Subatomic Replicator to replicate Hyp. Multirail 17775 | -2/Quarantine | Found Alien Artifact 17776 | -2/Quarantine | Identified Dimensional Node Initializer 17776 | -2/Quarantine | Initialized slip node 17778 | -2/Quarantine | Unchained authorized (6S-H0T) 17779 | -2/Quarantine | Found Dimensional Node Initializer 17788 | -2/Quarantine | Found Transdimensional Reconstructor 17790 | -2/Quarantine | Found Transdimensional Reconstructor 17802 | -2/Quarantine | Spotted Fortress 17837 | -2/Quarantine | Discovered new exit (range 6) 17837 | -2/Quarantine | Discovered new exit (range 6) 17839 | -2/Quarantine | Identified exit to Protoforge 17840 | -2/Quarantine | Identified exit to Section 7 17842 | -2/Quarantine | Entered Protoforge 17921 | -2/Protoforge | Discovered exit to Access (range 12) 18092 | -2/Protoforge | Search patrols dispatched 18172 | -2/Protoforge | Spotted Hotshot 18172 | -2/Protoforge | Spotted Hotshot 18313 | -2/Protoforge | System corruption reached 10% 18321 | -2/Protoforge | Lost 3 parts (1p1u1w) 18341 | -2/Protoforge | Found Prototype Device 18341 | -2/Protoforge | Identified Exp. Trap Extractor 18355 | -2/Protoforge | Destroyed 11 combat bots 18355 | -2/Protoforge | Lost 4 parts (2p1u1w) 18356 | -2/Protoforge | Found Prototype Launcher 18356 | -2/Protoforge | Identified Cep. Concussive Dispersal Blaster 18381 | -2/Protoforge | Found Prototype Energy Gun 18381 | -2/Protoforge | Identified Cep. Variable Chargecaster 18384 | -2/Protoforge | Found Cep. Variable Chargecaster 18388 | -2/Protoforge | Found Prototype Device 18388 | -2/Protoforge | Identified Cep. Antimissile System 18394 | -2/Protoforge | Found Cep. Variable Chargecaster 18399 | -2/Protoforge | Initialized slip node 18406 | -2/Protoforge | Warped through subspace to slip node 18426 | -2/Protoforge | Spotted V818-i 18435 | -2/Protoforge | Superfortress began startup sequence 18462 | -2/Protoforge | Found Prototype Device 18475 | -2/Protoforge | Lost 4 parts (1p2u1w) 18494 | -2/Protoforge | Destroyed V818-i 18504 | -2/Protoforge | Found Prototype Processor 18504 | -2/Protoforge | Identified Exp. Targeting Computer 18506 | -2/Protoforge | Found Med. Regenerative Plating 18514 | -2/Protoforge | Found Prototype Power Core 18514 | -2/Protoforge | Identified Cep. Zero-point Core 18526 | -2/Protoforge | Found Exp. Core Analyzer 18529 | -2/Protoforge | Found Prototype Device 18529 | -2/Protoforge | Identified Thermal Barrier 18536 | -2/Protoforge | Spotted Immortal 18536 | -2/Protoforge | Spotted Immortal 18563 | -2/Protoforge | Spotted V924-f 18563 | -2/Protoforge | Spotted V833-c 18563 | -2/Protoforge | Spotted V925-l 18564 | -2/Protoforge | Spotted V051-r 18581 | -2/Protoforge | Spotted Decapitator 18581 | -2/Protoforge | Spotted Decapitator 18606 | -2/Protoforge | Spotted Decapitator 18607 | -2/Protoforge | Spotted Decapitator 18610 | -2/Protoforge | Destroyed Decapitator 18617 | -2/Protoforge | Destroyed Decapitator 18640 | -2/Protoforge | Spotted Decapitator 18643 | -2/Protoforge | Identified Crosscalibrator 18659 | -2/Protoforge | Found Cep. Weapon Articulator 18662 | -2/Protoforge | Found Prototype Device 18662 | -2/Protoforge | Identified Mni. Quantum Capacitor 18674 | -2/Protoforge | Found Cep. Networked Targeting System 18714 | -2/Protoforge | Spotted V813-s 18714 | -2/Protoforge | Spotted V564-r 18722 | -2/Protoforge | Spotted V994-u 18740 | -2/Protoforge | Spotted Immortal 18740 | -2/Protoforge | Spotted Immortal 18741 | -2/Protoforge | Spotted Decapitator 18741 | -2/Protoforge | Spotted Decapitator 18741 | -2/Protoforge | Spotted Decapitator 18742 | -2/Protoforge | Spotted Decapitator 18744 | -2/Protoforge | Destroyed Decapitator 18748 | -2/Protoforge | Destroyed Decapitator 18763 | -2/Protoforge | Spotted V446-h 18763 | -2/Protoforge | Spotted V732-z 18766 | -2/Protoforge | Spotted Immortal 18766 | -2/Protoforge | Spotted Immortal 18802 | -2/Protoforge | Build established: Scavenger-Gunner 18823 | -2/Protoforge | Found Cep. Concussive Dispersal Blaster 18832 | -2/Protoforge | Destroyed Immortal 18842 | -2/Protoforge | First assault squad dispatched 18886 | -2/Protoforge | Destroyed Immortal 18906 | -2/Protoforge | Found Cep. Antigrav Storage Unit 18912 | -2/Protoforge | Found Cep. Chromion Battery 18913 | -2/Protoforge | Found Prototype Device 18913 | -2/Protoforge | Identified Cep. Matter Streamer 18935 | -2/Protoforge | Core integrity fell below 50% 18996 | -2/Protoforge | Found Prototype Hover Unit 19006 | -2/Protoforge | Found Prototype Hover Unit 19007 | -2/Protoforge | Found Faulty Cep. Combat Aerolev Unit 19014 | -2/Protoforge | Found Faulty Cep. Combat Aerolev Unit 19025 | -2/Protoforge | Found Prototype Hover Unit 19070 | -2/Protoforge | Destroyed Decapitator 19084 | -2/Protoforge | Forge Plexus network access discovered 19104 | -2/Protoforge | Found Cep. Plasma Driver 19106 | -2/Protoforge | Found Cep. Helical Railcannon 19107 | -2/Protoforge | Found Faulty Cep. XC Strikerail 19114 | -2/Protoforge | Identified Cep. Gyrokinetic System (x3) 19119 | -2/Protoforge | Found Cep. XC Strikerail 19131 | -2/Protoforge | Found Cep. XC Strikerail 19134 | -2/Protoforge | Found Faulty Cep. XC Strikerail 19137 | -2/Protoforge | Found Faulty Cep. Helical Railcannon 19270 | -2/Protoforge | Destroyed Immortal 19295 | -2/Protoforge | Destroyed Immortal 19321 | -2/Protoforge | Found Cep. Core Shell 19322 | -2/Protoforge | Found Cep. RG22 Armor 19331 | -2/Protoforge | Found Cep. RG22 Armor 19333 | -2/Protoforge | Found Cep. Phase Shift Module 19355 | -2/Protoforge | Destroyed Decapitator 19358 | -2/Protoforge | Destroyed Decapitator 19374 | -2/Protoforge | Spotted V081-k 19395 | -2/Protoforge | Destroyed V081-k 19412 | -2/Protoforge | Found Prototype Device 19412 | -2/Protoforge | Identified Exp. Shield Generator 19445 | -2/Protoforge | Found Faulty Cep. Zero-point Core 19487 | -2/Protoforge | Found Cep. Core Shell 19552 | -2/Protoforge | Warped through subspace to slip node 19572 | -2/Protoforge | Spotted EXE-6 19572 | -2/Protoforge | Spotted EXE-6 19578 | -2/Protoforge | Spotted Overlord 19592 | -2/Protoforge | UFD initiated attack on Protoforge (Readiness: High) 19592 | -2/Protoforge | Loaded intel: 3 recycling unit locations 19618 | -2/Protoforge | Build established: Scavenger-Tank 19619 | -2/Protoforge | Found Cep. XC Strikerail 19621 | -2/Protoforge | Found Exp. Core Analyzer 19628 | -2/Protoforge | Optimus greeted in Protoforge 19632 | -2/Protoforge | Spotted SKR-2 19632 | -2/Protoforge | Spotted SKR-2 19632 | -2/Protoforge | Spotted SKR-2 19646 | -2/Protoforge | Destroyed SKR-2 19666 | -2/Protoforge | Spotted EXE-6 19666 | -2/Protoforge | Spotted EXE-6 19669 | -2/Protoforge | Destroyed EXE-6 19674 | -2/Protoforge | Destroyed EXE-6 19683 | -2/Protoforge | Found Cep. XC Strikerail 19685 | -2/Protoforge | Found Prototype Processor 19685 | -2/Protoforge | Identified Exp. Armor Integrity Analyzer 19687 | -2/Protoforge | Found Exp. Kinecellerator 19697 | -2/Protoforge | Found Cep. XC Strikerail 19701 | -2/Protoforge | Found Exp. Kinecellerator 19753 | -2/Protoforge | Spotted AP7-3 19772 | -2/Protoforge | Spotted Striker 19772 | -2/Protoforge | Spotted Striker 19776 | -2/Protoforge | Found Cep. XC Strikerail 19777 | -2/Protoforge | Destroyed Striker 19824 | -2/Protoforge | Spotted Executioner 19855 | -2/Protoforge | Found Prototype Device 19855 | -2/Protoforge | Identified Exp. Weapon Cycler 19857 | -2/Protoforge | Found Prototype Device 19857 | -2/Protoforge | Identified Exp. EM Shield 19868 | -2/Protoforge | Found Prototype Device 19868 | -2/Protoforge | Identified Adv. Kinecellerator 19871 | -2/Protoforge | Lost 10 allies 19892 | -2/Protoforge | Found Prototype Device 19892 | -2/Protoforge | Identified Exp. Transmission Jammer 19939 | -2/Protoforge | Build established: Scavenger-Gunner 19974 | -2/Protoforge | Spotted Executioner 19979 | -2/Protoforge | Lost 5 allies 20023 | -2/Protoforge | Spotted Executioner 20023 | -2/Protoforge | Destroyed Executioner 20053 | -2/Protoforge | Spotted Executioner 20080 | -2/Protoforge | Spotted Hotshot 20081 | -2/Protoforge | Spotted Hotshot 20083 | -2/Protoforge | Spotted Executioner 20085 | -2/Protoforge | Destroyed Hotshot 20085 | -2/Protoforge | Destroyed Hotshot 20092 | -2/Protoforge | Spotted Striker 20107 | -2/Protoforge | Spotted Executioner 20109 | -2/Protoforge | Destroyed Executioner 20111 | -2/Protoforge | Destroyed Executioner 20123 | -2/Protoforge | Spotted Executioner 20136 | -2/Protoforge | Spotted Executioner 20141 | -2/Protoforge | Spotted Hotshot 20141 | -2/Protoforge | Spotted Hotshot 20152 | -2/Protoforge | Destroyed 10 combat bots 20152 | -2/Protoforge | Destroyed Hotshot 20158 | -2/Protoforge | UFD reported confirmed Drillbomb installation 20159 | -2/Protoforge | Spotted Striker 20161 | -2/Protoforge | Lost 13 allies 20162 | -2/Protoforge | Spotted Striker 20174 | -2/Protoforge | Spotted Striker 20175 | -2/Protoforge | Spotted Striker 20237 | -2/Protoforge | Destroyed 7 combat bots 20240 | -2/Protoforge | Spotted Executioner 20243 | -2/Protoforge | Spotted Executioner 20244 | -2/Protoforge | Destroyed Executioner 20246 | -2/Protoforge | Destroyed Executioner 20284 | -2/Protoforge | Spotted Executioner 20297 | -2/Protoforge | Spotted Striker 20297 | -2/Protoforge | Spotted Executioner 20332 | -2/Protoforge | Spotted Hotshot 20332 | -2/Protoforge | Spotted Hotshot 20337 | -2/Protoforge | Destroyed Hotshot 20337 | -2/Protoforge | Destroyed Hotshot 20348 | -2/Protoforge | Spotted Striker 20349 | -2/Protoforge | Spotted Striker 20354 | -2/Protoforge | Spotted Striker 20355 | -2/Protoforge | Spotted Striker 20356 | -2/Protoforge | Spotted Striker 20357 | -2/Protoforge | Spotted Striker 20358 | -2/Protoforge | Destroyed Striker 20365 | -2/Protoforge | Destroyed Striker 20368 | -2/Protoforge | Destroyed Striker 20371 | -2/Protoforge | Destroyed Striker 20439 | -2/Protoforge | Destroyed 14 combat bots 20440 | -2/Protoforge | Spotted Striker 20440 | -2/Protoforge | Spotted Executioner 20445 | -2/Protoforge | Lost 8 allies 20447 | -2/Protoforge | Spotted Striker 20449 | -2/Protoforge | Destroyed Striker 20452 | -2/Protoforge | Spotted Striker 20454 | -2/Protoforge | Spotted Executioner 20460 | -2/Protoforge | Spotted Executioner 20462 | -2/Protoforge | Destroyed Striker 20464 | -2/Protoforge | Destroyed Executioner 20475 | -2/Protoforge | Destroyed Executioner 20484 | -2/Protoforge | Spotted Executioner 20484 | -2/Protoforge | Spotted Striker 20499 | -2/Protoforge | Destroyed 11 combat bots 20501 | -2/Protoforge | Destroyed Striker 20508 | -2/Protoforge | Destroyed Executioner 20520 | -2/Protoforge | Lost 6 allies 20547 | -2/Protoforge | Spotted Striker 20552 | -2/Protoforge | Spotted Striker 20560 | -2/Protoforge | Spotted Executioner 20563 | -2/Protoforge | Spotted Executioner 20565 | -2/Protoforge | Destroyed 11 combat bots 20573 | -2/Protoforge | Spotted Striker 20579 | -2/Protoforge | Spotted Striker 20585 | -2/Protoforge | Destroyed Executioner 20588 | -2/Protoforge | Destroyed Striker 20630 | -2/Protoforge | Lost 6 allies 20642 | -2/Protoforge | Spotted Striker 20644 | -2/Protoforge | Spotted Striker 20644 | -2/Protoforge | Spotted Striker 20649 | -2/Protoforge | Spotted Striker 20651 | -2/Protoforge | Destroyed Striker 20658 | -2/Protoforge | Destroyed Striker 20661 | -2/Protoforge | Destroyed Striker 20668 | -2/Protoforge | Destroyed Executioner 20669 | -2/Protoforge | Spotted Striker 20670 | -2/Protoforge | Destroyed Striker 20674 | -2/Protoforge | UFD reported confirmed Drillbomb installation 20701 | -2/Protoforge | Destroyed 16 combat bots 20744 | -2/Protoforge | Spotted Executioner 20744 | -2/Protoforge | Spotted Striker 20744 | -2/Protoforge | Spotted Executioner 20744 | -2/Protoforge | Spotted Executioner 20745 | -2/Protoforge | UFD reported confirmed Drillbomb installation 20761 | -2/Protoforge | Destroyed Striker 20782 | -2/Protoforge | UFD reported confirmed Drillbomb installation 20787 | -2/Protoforge | Spotted Striker 20788 | -2/Protoforge | Spotted Striker 20791 | -2/Protoforge | Lost 4 allies 20792 | -2/Protoforge | Destroyed Executioner 20799 | -2/Protoforge | Destroyed Executioner 20803 | -2/Protoforge | Destroyed Executioner 20847 | -2/Protoforge | Spotted Striker 20848 | -2/Protoforge | Spotted Executioner 20850 | -2/Protoforge | Destroyed 10 combat bots 20872 | -2/Protoforge | UFD reported confirmed Drillbomb installation 20881 | -2/Protoforge | UFD reported confirmed Drillbomb installation 20897 | -2/Protoforge | Spotted Executioner 20907 | -2/Protoforge | Spotted Executioner 20913 | -2/Protoforge | Spotted Executioner 20917 | -2/Protoforge | Destroyed Executioner 20950 | -2/Protoforge | Spotted Striker 20954 | -2/Protoforge | Spotted Striker 20968 | -2/Protoforge | Destroyed Striker 20970 | -2/Protoforge | Spotted Executioner 20971 | -2/Protoforge | Spotted Executioner 20972 | -2/Protoforge | Destroyed Executioner 20973 | -2/Protoforge | P-80 Master assimilated allied 02FAA-D 20985 | -2/Protoforge | Spotted Executioner 20994 | -2/Protoforge | Spotted Executioner 20997 | -2/Protoforge | Destroyed Executioner 21000 | -2/Protoforge | Destroyed Executioner 21025 | -2/Protoforge | Destroyed 11 combat bots 21026 | -2/Protoforge | Lost 15 allies 21043 | -2/Protoforge | Spotted Executioner 21043 | -2/Protoforge | Spotted Executioner 21043 | -2/Protoforge | Spotted Striker 21043 | -2/Protoforge | Spotted Executioner 21071 | -2/Protoforge | Destroyed Striker 21085 | -2/Protoforge | Destroyed Executioner 21092 | -2/Protoforge | Destroyed Executioner 21113 | -2/Protoforge | Destroyed 7 combat bots 21120 | -2/Protoforge | Lost 5 allies 21142 | -2/Protoforge | Spotted Striker 21142 | -2/Protoforge | Spotted Striker 21142 | -2/Protoforge | Spotted Executioner 21142 | -2/Protoforge | Spotted Executioner 21200 | -2/Protoforge | Spotted Striker 21218 | -2/Protoforge | Destroyed Executioner 21234 | -2/Protoforge | Spotted Striker 21256 | -2/Protoforge | Spotted Executioner 21258 | -2/Protoforge | Destroyed Executioner 21281 | -2/Protoforge | Spotted Striker 21281 | -2/Protoforge | Spotted Executioner 21281 | -2/Protoforge | Spotted Executioner 21281 | -2/Protoforge | Spotted Executioner 21284 | -2/Protoforge | Destroyed 11 combat bots 21304 | -2/Protoforge | Spotted Executioner 21308 | -2/Protoforge | Destroyed Executioner 21339 | -2/Protoforge | Destroyed Executioner 21363 | -2/Protoforge | Spotted Executioner 21363 | -2/Protoforge | Spotted Striker 21374 | -2/Protoforge | Destroyed Striker 21395 | -2/Protoforge | Destroyed Executioner 21398 | -2/Protoforge | Spotted Executioner 21399 | -2/Protoforge | Spotted Executioner 21412 | -2/Protoforge | Spotted Striker 21418 | -2/Protoforge | Spotted Striker 21425 | -2/Protoforge | Destroyed Striker 21431 | -2/Protoforge | Destroyed Executioner 21449 | -2/Protoforge | Lost 13 allies 21449 | -2/Protoforge | Spotted Striker 21452 | -2/Protoforge | Destroyed 20 combat bots 21471 | -2/Protoforge | Spotted Executioner 21495 | -2/Protoforge | Spotted Executioner 21495 | -2/Protoforge | Spotted Striker 21497 | -2/Protoforge | Spotted Executioner 21509 | -2/Protoforge | Destroyed Striker 21523 | -2/Protoforge | Destroyed Executioner 21537 | -2/Protoforge | Spotted Striker 21538 | -2/Protoforge | Destroyed Striker 21552 | -2/Protoforge | Destroyed Executioner 21556 | -2/Protoforge | Lost 10 allies 21559 | -2/Protoforge | Spotted Striker 21561 | -2/Protoforge | Destroyed Striker 21565 | -2/Protoforge | Destroyed Striker 21569 | -2/Protoforge | Spotted Executioner 21573 | -2/Protoforge | Spotted Striker 21593 | -2/Protoforge | Destroyed Executioner 21602 | -2/Protoforge | Spotted Striker 21609 | -2/Protoforge | Destroyed Striker 21648 | -2/Protoforge | Lost 4 allies 21648 | -2/Protoforge | Spotted Striker 21649 | -2/Protoforge | Spotted Striker 21652 | -2/Protoforge | Destroyed 24 combat bots 21654 | -2/Protoforge | Destroyed Striker 21656 | -2/Protoforge | Spotted Executioner 21656 | -2/Protoforge | Spotted Striker 21663 | -2/Protoforge | P-80 Master assimilated allied 02FBN-D 21669 | -2/Protoforge | Destroyed Striker 21680 | -2/Protoforge | Spotted Striker 21682 | -2/Protoforge | Spotted Striker 21682 | -2/Protoforge | Destroyed Executioner 21690 | -2/Protoforge | Destroyed Striker 21693 | -2/Protoforge | Destroyed Striker 21727 | -2/Protoforge | Destroyed 15 combat bots 21733 | -2/Protoforge | Lost 5 allies 21742 | -2/Protoforge | UFD reported confirmed Drillbomb installation 21743 | -2/Protoforge | Spotted Executioner 21743 | -2/Protoforge | Spotted Striker 21743 | -2/Protoforge | Spotted Executioner 21744 | -2/Protoforge | Spotted Executioner 21747 | -2/Protoforge | Local machine network offline 21757 | -2/Protoforge | Destroyed Executioner 21772 | -2/Protoforge | Spotted Executioner 21774 | -2/Protoforge | Spotted Striker 21779 | -2/Protoforge | Destroyed Striker 21793 | -2/Protoforge | Lost 4 allies 21806 | -2/Protoforge | Destroyed 8 combat bots 21813 | -2/Protoforge | Destroyed Executioner 21818 | -2/Protoforge | Destroyed Executioner 21854 | -2/Protoforge | Spotted Executioner 21920 | -2/Protoforge | Spotted Striker 21922 | -2/Protoforge | Spotted Executioner 21928 | -2/Protoforge | Destroyed Executioner 21928 | -2/Protoforge | Destroyed Executioner 21935 | -2/Protoforge | Destroyed Striker 21959 | -2/Protoforge | Spotted Executioner 21964 | -2/Protoforge | Destroyed Executioner 21967 | -2/Protoforge | Spotted Executioner 21967 | -2/Protoforge | Spotted Executioner 21967 | -2/Protoforge | Spotted Executioner 21968 | -2/Protoforge | Destroyed Executioner 22006 | -2/Protoforge | Lost 5 allies 22007 | -2/Protoforge | Destroyed Executioner 22011 | -2/Protoforge | Destroyed Executioner 22069 | -2/Protoforge | Lost 3 parts (1p1u1w) 22073 | -2/Protoforge | Spotted Executioner 22074 | -2/Protoforge | Spotted Executioner 22075 | -2/Protoforge | Destroyed Executioner 22078 | -2/Protoforge | Spotted Striker 22080 | -2/Protoforge | Spotted Executioner 22081 | -2/Protoforge | Spotted Striker 22082 | -2/Protoforge | Destroyed Executioner 22096 | -2/Protoforge | Destroyed Striker 22105 | -2/Protoforge | Destroyed Executioner 22133 | -2/Protoforge | Destroyed 9 combat bots 22139 | -2/Protoforge | Lost 8 allies 22152 | -2/Protoforge | Spotted Striker 22157 | -2/Protoforge | Spotted Striker 22160 | -2/Protoforge | Spotted Executioner 22165 | -2/Protoforge | Destroyed Striker 22168 | -2/Protoforge | Spotted Striker 22180 | -2/Protoforge | Destroyed Striker 22202 | -2/Protoforge | Destroyed Executioner 22203 | -2/Protoforge | Spotted Striker 22205 | -2/Protoforge | Spotted Striker 22207 | -2/Protoforge | Lost 3 allies 22208 | -2/Protoforge | Destroyed Striker 22211 | -2/Protoforge | Destroyed Striker 22247 | -2/Protoforge | Spotted Executioner 22248 | -2/Protoforge | Spotted Executioner 22248 | -2/Protoforge | Spotted Executioner 22249 | -2/Protoforge | Spotted Executioner 22249 | -2/Protoforge | Destroyed Executioner 22271 | -2/Protoforge | Destroyed Executioner 22273 | -2/Protoforge | Spotted Executioner 22282 | -2/Protoforge | Destroyed Executioner 22286 | -2/Protoforge | Destroyed Executioner 22302 | -2/Protoforge | Lost 6 allies 22305 | -2/Protoforge | Destroyed Executioner 22326 | -2/Protoforge | Destroyed 21 combat bots 22342 | -2/Protoforge | Spotted Striker 22342 | -2/Protoforge | Spotted Executioner 22342 | -2/Protoforge | Spotted Striker 22342 | -2/Protoforge | Spotted Striker 22342 | -2/Protoforge | Destroyed Executioner 22346 | -2/Protoforge | Allies destroyed Striker 22367 | -2/Protoforge | Spotted Executioner 22367 | -2/Protoforge | Spotted Executioner 22372 | -2/Protoforge | Destroyed Executioner 22381 | -2/Protoforge | UFD reported confirmed Drillbomb installation 22393 | -2/Protoforge | Destroyed 7 combat bots 22402 | -2/Protoforge | Lost 6 allies 22444 | -2/Protoforge | Destroyed Striker 22448 | -2/Protoforge | Spotted Striker 22448 | -2/Protoforge | Spotted Striker 22448 | -2/Protoforge | Spotted Striker 22449 | -2/Protoforge | Destroyed Striker 22469 | -2/Protoforge | Spotted Executioner 22473 | -2/Protoforge | Destroyed 7 combat bots 22477 | -2/Protoforge | Destroyed Striker 22482 | -2/Protoforge | Destroyed Striker 22495 | -2/Protoforge | P-80 Master assimilated allied Lugger 677 22497 | -2/Protoforge | Lost 3 parts (1p2w) 22509 | -2/Protoforge | Spotted Executioner 22512 | -2/Protoforge | Destroyed Executioner 22533 | -2/Protoforge | Destroyed 8 combat bots 22541 | -2/Protoforge | Lost 8 allies 22542 | -2/Protoforge | Spotted Striker 22542 | -2/Protoforge | Spotted Striker 22542 | -2/Protoforge | Spotted Striker 22542 | -2/Protoforge | Spotted Striker 22544 | -2/Protoforge | Destroyed Striker 22549 | -2/Protoforge | Destroyed Striker 22568 | -2/Protoforge | Spotted Executioner 22568 | -2/Protoforge | Spotted Executioner 22571 | -2/Protoforge | Destroyed Executioner 22597 | -2/Protoforge | Destroyed 11 combat bots 22602 | -2/Protoforge | Lost 6 allies 22642 | -2/Protoforge | Spotted Striker 22643 | -2/Protoforge | Destroyed Executioner 22646 | -2/Protoforge | Spotted Executioner 22646 | -2/Protoforge | Spotted Striker 22647 | -2/Protoforge | Destroyed Executioner 22659 | -2/Protoforge | Destroyed Striker 22667 | -2/Protoforge | Spotted Executioner 22667 | -2/Protoforge | Destroyed Executioner 22672 | -2/Protoforge | Spotted Executioner 22673 | -2/Protoforge | Destroyed Executioner 22690 | -2/Protoforge | Lost 3 allies 22693 | -2/Protoforge | UFD reported confirmed Drillbomb installation 22694 | -2/Protoforge | Destroyed 9 combat bots 22758 | -2/Protoforge | Spotted Striker 22772 | -2/Protoforge | Spotted Executioner 22772 | -2/Protoforge | Spotted Executioner 22773 | -2/Protoforge | Destroyed Executioner 22774 | -2/Protoforge | Spotted Striker 22775 | -2/Protoforge | Destroyed Executioner 22780 | -2/Protoforge | Destroyed Executioner 22785 | -2/Protoforge | Destroyed Striker 22800 | -2/Protoforge | Lost 5 allies 22808 | -2/Protoforge | Destroyed 12 combat bots 22821 | -2/Protoforge | UFD reported confirmed Drillbomb installation 22822 | -2/Protoforge | UFD began Drillbomb countdown 22922 | *** | Defending 0bPrime! Last Messages --------------- 22913_ 0bP_NET: In T-9 this fine piece of machinery is all ours for the steep price of... many UFD lives. 22914_ 0bP_NET: But with it we will not only rebuild, we will wrest full control over 0b1 for ourselves! 22915_ 0bP_NET: What better way to punctuate our success than a blaze of glory, directed away from ourselves, of course. 22916_ 0bP_NET: Time for our final countdown to an explosive victory... 22917_ 0bP_NET: 5! 22918_ 0bP_NET: 4! 22919_ 0bP_NET: 3! 22920_ Forge Plexus deploys N-04 Retriever. 22920_ 0bP_NET: If you're in the wrong place at the wrong time, the wrong time being in just a moment, I'm sorry but prepare to die. 22921_ 0bP_NET: Otherwise, enjoy the show! [Achievement: 100k Club] Map ----- +----------------------------------------------------+ | " """"""""""""""""""""""" "" | | " "" """"""""""""""""""""""""" | | """"" " """"""""""""""""""""""""""" " | | "" "" " """"""""""""""""""""""""""" "" | | "" " "" """"""""""""""""""""""""""" "" | | "" " """"""""""""""""""""""""""""" "" | | %" " """"""""""""""""""""""""""""" " " | | " """"""""""""""""""""""""""""" | | %% """"""""""""""""""""""""""""" | | "" " " """"""""""""""""""""""""""""" " " | | "% % " % """"""""""""""""""""""""""""" | | """ n """"""""""""""""""""""""""""" | | " """ """"" " """"""""""""""""""""""""""""" " | | "" % " """"""""""""""""""""""""""""" " | | " """"""""""""""""""""""""""" "" | | """"""""""""""""""""""""""" """ | | """""""%! "" """""""""""""""""""""""""""s "" | | """ " " % """"""""""""""""""""""""" " | | " " """"""""""""""""""""""" s" | | "" s """"""""""""""""""""" " | | "" "" "" jn""""""""""""""""""" " | | "" "" " % s"""""""""""""""""sSS " " | | "" """ s j""""""""""""""" "SS"" | | " " """"""""" % "" " | | " ""% % !" "" "" " | | " " """ "" "% s%%@"3 " "" "" " | | " """ % s " " % | | " " %s " """" """" " "" | | " " " " """ """j "" """"""Es"" "" | | " " s"sj" """ " SS s | | " " " """ " "" " % S"" " | | "" "" " " " E js %" "" s"" " | | " "" " % """" " "" " | | "" "" " """"" ""% """ " " " | | "" " " " " % "%"" | | "" "" | | " "" """""" """ | | "" "" """" % """ | | """ ] " " "" """""" " " | | #######% #######################################++ | | ??????####?????????????????????????????????#"" | | ?????????????????????????????????????????###" | | ?????????????????????????????????????????#"" | | ?????????????????????????????????????????#"" | | ?????????????????????????????????????????#"" | | ?????????????????????????????????????????#"Y | | ?????????????????????????????????????????#"" | | ?????????????????????????????????????????#"" | | ?????????????????????????????????????????#"" | | ?????????????????????????????????????????###" | +----------------------------------------------------+ Best States ------------- Heat Dissipation 87 Energy Generation 61 Energy Capacity 1520 Matter Stores 300 Matter Capacity 300 Sight Range 23 Robot Scan Range 18 Terrain Scan Density 10 Jamming Range 16 Cloak Strength 3 Additional Mass Support 16 EM Shielding 4 Corruption Block 15 Armor Coverage 675 Resistance: KI 25 Resistance: TH 50 Core Shielding 90 Power Shielding 66 Propulsion Shielding 33 Utility Shielding 66 Weapon Shielding 90 Weapon Cycling 30 Melee Speed Boost 30 Phase Shifting 25 Evasion (%) 96 Targeting Accuracy 30 Melee Accuracy 8 Target Analysis 8 Core Analysis 12 Armor Integrity Analysis 50 Recoil Reduction 1 Particle Charging 25 Kinecelleration 66 Salvage Targeting 15 Offensive Hacking 38 Defensive Hacking 24 Authchip Count 4 Trap Extractor Capacity 12 Item Schematics ----------------- Mak. Leg | -7/Scraptown | Extrapolated Mak. Targeting Computer | -7/Scraptown | Extrapolated Spk. Treads | -7/Scraptown | Extrapolated Mak. Coolant Network | -7/Scraptown | Extrapolated Mak. Light Armor Plating | -7/Scraptown | Extrapolated Machine Rigger | -7/Scraptown | Extrapolated Lgt. Humpback | -7/Scraptown | Extrapolated Deep Structural Scanner | -7/Scraptown | Extrapolated Mak. Spear | -5/Factory | Extrapolated Beamcaster | -5/Factory | Extrapolated Spk. Medium Treads | -5/Factory | Extrapolated Spk. Heavy Treads | -5/Factory | Extrapolated Mak. System Shield | -5/Factory | Extrapolated Mak. Medium Armor Plating | -5/Factory | Extrapolated Mak. Ablative Armor | -5/Factory | Extrapolated Mak. Propulsion Shielding | -5/Waste | Extrapolated Mak. ECM Suite | -5/Factory | Extrapolated Mak. Transmission Jammer | -5/Factory | Extrapolated Mak. Core Shielding | -5/Extension | Extrapolated Mak. Weapon Shielding | -5/Extension | Extrapolated Mak. Hacking Suite | -5/Extension | Extrapolated Mak. Laser | -5/Extension | Extrapolated Multitool | -5/Extension | Extrapolated Mapping Drone Bay | -5/Extension | Extrapolated Mak. Heavy Armor Plating | -5/Extension | Extrapolated Hyp. Gauss Cannon | -5/Extension | Hacked Hvy. Beamcaster | -5/Extension | Extrapolated Hvy. Battle Rifle | -5/Extension | Extrapolated Mak. Thermal Plating | -5/Cetus | Extrapolated Mak. Sensor Array | -5/Cetus | Extrapolated 0b10 Decoder Chip [Generic] | -5/Archives | Extrapolated 0b10 Decoder Chip [Scout] | -5/Archives | Extrapolated 0b10 Decoder Chip [Skirmisher] | -5/Archives | Extrapolated Mak. System Restoration Module | -5/Archives | Extrapolated Mak. Trap Scanner | -4/Factory | Extrapolated Mak. Shrapnel Gun | -4/Factory | Extrapolated Bore Cannon | -4/Factory | Extrapolated Mak. Salvage Targeting Computer | -4/Factory | Extrapolated Enh. Quantum Rifle | -4/Factory | Hacked Q-thruster | -4/Factory | Hacked Energy Deflector | -4/Factory | Extrapolated Mak. Power Source | -4/Waste | Extrapolated Mak. Terrain Scanner | -4/Factory | Extrapolated Mak. Terrain Scan Processor | -4/Factory | Extrapolated Assault Drone Bay | -4/Zhirov | Free Exp. Heat Sink | -4/Zhirov | Free Exp. Optical Array | -4/Zhirov | Free Imp. Arc Thrower | -4/Zhirov | Free Hyp. Mass Driver | -3/Research | Scanalyzed Cmb. Linear Gravjet | -3/Research | Hacked Exp. Core Analyzer | -3/Testing | Hacked Adv. Heavy Siege Treads | -3/Testing | Downloaded Exp. Gyrokinetic Inverter | -3/Testing | Hacked Imp. Thermal Defense Suite | -3/Testing | Archive Exp. Melee Analysis Suite | -3/Testing | Archive Gravity Neutralizer | -3/Testing | Archive Exp. Signal Interpreter | -3/Testing | Archive Exp. Thermal Defense Suite | -3/Testing | Archive Prc. Phase Gun | -3/Testing | Archive Lgt. Neutrino Core | -3/Testing | Archive Hellfire Missile Launcher | -3/Testing | Archive Exp. Energy Well | -3/Testing | Archive Thunder Hammer | -3/Testing | Archive Robot Schematics ------------------ M-13 Machinist | -10/Materials | Hacked A-02 Transporter | -3/Testing | Archive A-15 Conveyor | -3/Testing | Archive T-07 Excavator | -3/Testing | Archive L-61 Swordsman | -3/Testing | Archive Fabricated ------------ Railgun | x2 | -5/Factory | Preloaded Deep Structural Scanner | x1 | -5/Factory | Authchip Mak. Hacking Suite | x1 | -4/Factory Deep Structural Scanner | x1 | -3/Research Exp. Optical Array | x1 | -3/Research Exp. Optical Array | x1 | -3/Research Repaired ---------- Adv. Sensor Array | 99% | -3/Research | Broken Studied --------- Hyp. Mass Driver | -4/Factory | Hacked Mic. Fission Core | -4/Factory | Hacked Nuclear Pulse Thruster | -4/Factory | Hacked Adv. Surge Thruster | -4/Factory | Hacked Mic. Antimatter Reactor | -3/Research | Hacked Q-thruster | -3/Research | Hacked Adv. Datajack | -3/Testing | Hacked Imp. Remote Datajack | -2/Research | Hacked Cmb. Linear Gravjet | -2/Quarantine | Hacked Lgt. Deuterium Engine | -2/Quarantine | Hacked Lgt. Quantum Reactor | -2/Protoforge | Hacked Imp. Gyrokinetic Inverter | -2/Protoforge | Hacked Alien Tech Used ----------------- Integrated Reactor Phase Redirector Sigix Broadsword Matter Drive Subatomic Replicator Dimensional Node Initializer Transdimensional Reconstructor Achievements -------------- 100k Club Inventory Pressure Ponder That! Red Leader Scientist At Large Wheee! Challenges ------------ None Game ------ Seed InsulatedPowerFilter Manual? 0 Play Time 09:20:37 Cumulative 368.4 hours Start 2026.01.01 @ 02:50:09 End 2026.01.02 @ 21:47:13 Sessions 9 Manual Loads 0 Difficulty Rogue Special Mode None Game No. 130 Rogue 130 Adventurer 0 Explorer 0 Win Type 9 Total 8 Types 5/0/0/0/0/0/0/1/0/2 Lore% 81 Gallery% 78 Achievement% 66 Wizard Run 0 Options --------- Layout 1 ASCII 0 Keyboard 0 Movement Mouse Keybinds 0 Fullscreen 2 Font 32/SmallcapsGlow Map View 50x35 Zoom Use 0% Tactical HUD 1 Map Filters NONE Filters NONE Steam 1 RUN: 3654a9f3-dc54-4eab-b998-7c9dba85c622